Workbook

Sheet dvojice muži
A1: Poř. | B1: Jméno | C1: Oddíl | D1: plné | E1: dor. | F1: celkem | G1: chyby | H1: Jméno | I1: Oddíl | J1: plné | K1: dor. | L1: celkem | M1: chyby | N1: plné | O1: dor. | P1: celkem | Q1: chyby
A2: 1 | B2: Stránský Milan | C2: Duchcov | D2: 393 | E2: 221 | F2: 614 | G2: 0 | H2: Mach Radek | I2: Verneřice | J2: 373 | K2: 207 | L2: 580 | M2: 6 | N2: 766 | O2: 428 | P2: 1194 | Q2: 6
A3: 2 | B3: Štraicher Tomáš | C3: Loko UL | D3: 384 | E3: 186 | F3: 570 | G3: 1 | H3: Dařílek Jakub | I3: Loko UL | J3: 373 | K3: 246 | L3: 619 | M3: 1 | N3: 757 | O3: 432 | P3: 1189 | Q3: 2
A4: 3 | B4: Tomáš Zahálka | C4: Loko UL | D4: 403 | E4: 177 | F4: 580 | G4: 4 | H4: Martin Zahálka | I4: Loko UL | J4: 402 | K4: 199 | L4: 601 | M4: 3 | N4: 805 | O4: 376 | P4: 1181 | Q4: 7
A5: 4 | B5: Zahálka Tomáš | C5: Loko UL | D5: 384 | E5: 232 | F5: 616 | G5: 5 | H5: Zahálka Martin | I5: Loko UL | J5: 359 | K5: 205 | L5: 564 | M5: 3 | N5: 743 | O5: 437 | P5: 1180 | Q5: 8
A6: 5 | B6: Málek Josef | C6: Sokol UL | D6: 375 | E6: 175 | F6: 550 | G6: 4 | H6: Málek Petr | I6: Sokol UL | J6: 403 | K6: 183 | L6: 586 | M6: 7 | N6: 778 | O6: 358 | P6: 1136 | Q6: 11
A7: 6 | B7: Pavlík Samuel | C7: K.Vary | D7: 348 | E7: 168 | F7: 516 | G7: 7 | H7: Pavlík Tomáš | I7: K.Vary | J7: 392 | K7: 225 | L7: 617 | M7: 2 | N7: 740 | O7: 393 | P7: 1133 | Q7: 9
A8: 7 | B8: Piskoř Pavel | C8: Kovo DC | D8: 362 | E8: 200 | F8: 562 | G8: 2 | H8: Kubita Vratislav | I8: Kovo DC | J8: 366 | K8: 204 | L8: 570 | M8: 4 | N8: 728 | O8: 404 | P8: 1132 | Q8: 6
A9: 8 | B9: Charvát Tomáš | C9: Lovosice | D9: 372 | E9: 193 | F9: 565 | G9: 9 | H9: Chot Jaroslav | I9: Lovosice | J9: 388 | K9: 179 | L9: 567 | M9: 7 | N9: 760 | O9: 372 | P9: 1132 | Q9: 16
A10: 9 | B10: Přeučil Roman | C10: Vršovice | D10: 385 | E10: 185 | F10: 570 | G10: 4 | H10: Přeučil Jiří | I10: Vršovice | J10: 377 | K10: 170 | L10: 547 | M10: 7 | N10: 762 | O10: 355 | P10: 1117 | Q10: 11
A11: 10 | B11: Salajka Jan | C11: Teplice | D11: 401 | E11: 156 | F11: 557 | G11: 10 | H11: Fabián Petr | I11: Teplice | J11: 378 | K11: 181 | L11: 559 | M11: 9 | N11: 779 | O11: 337 | P11: 1116 | Q11: 19
A12: 11 | B12: Oeschägel Philipp | C12: SV Diggli | D12: 367 | E12: 225 | F12: 592 | G12: 2 | H12: Maroe Dennis | I12: SV Diggli | J12: 366 | K12: 157 | L12: 523 | M12: 14 | N12: 733 | O12: 382 | P12: 1115 | Q12: 16
A13: 12 | B13: Salajka Jan | C13: Teplice | D13: 372 | E13: 178 | F13: 550 | G13: 8 | H13: Fabián Petr | I13: Teplice | J13: 385 | K13: 179 | L13: 564 | M13: 9 | N13: 757 | O13: 357 | P13: 1114 | Q13: 17
A14: 13 | B14: Vorlický Jaroslav | C14: Loko UL | D14: 382 | E14: 178 | F14: 560 | G14: 11 | H14: Ramajzl Zdenek | I14: Loko UL | J14: 374 | K14: 173 | L14: 547 | M14: 11 | N14: 756 | O14: 351 | P14: 1107 | Q14: 22
A15: 14 | B15: Pohl Nikita | C15: SV Süßkirsch | D15: 360 | E15: 215 | F15: 575 | G15: 2 | H15: Torsten Ulrich | I15: SV Süßkirsch | J15: 363 | K15: 159 | L15: 522 | M15: 10 | N15: 723 | O15: 374 | P15: 1097 | Q15: 12
A16: 15 | B16: Koubek Michal | C16: Trnovany | D16: 366 | E16: 176 | F16: 542 | G16: 2 | H16: Šálek Josef | I16: Teplice | J16: 378 | K16: 177 | L16: 555 | M16: 2 | N16: 744 | O16: 353 | P16: 1097 | Q16: 4
A17: 16 | B17: Oeschägel Jörg | C17: SV Budweiser | D17: 375 | E17: 169 | F17: 544 | G17: 10 | H17: Bloß Peter | I17: CV Budweiser | J17: 386 | K17: 157 | L17: 543 | M17: 2 | N17: 761 | O17: 326 | P17: 1087 | Q17: 12
A18: 17 | B18: Málek Josef | C18: Sokol UL | D18: 354 | E18: 192 | F18: 546 | G18: 2 | H18: Staněk Petr | I18: Sokol UL | J18: 361 | K18: 179 | L18: 540 | M18: 8 | N18: 715 | O18: 371 | P18: 1086 | Q18: 10
A19: 18 | B19: Šípek Jiří | C19: Loko UL | D19: 379 | E19: 188 | F19: 567 | G19: 5 | H19: Potůček Miroslav | I19: Zwiessel | J19: 363 | K19: 156 | L19: 519 | M19: 9 | N19: 742 | O19: 344 | P19: 1086 | Q19: 14
A20: 19 | B20: Pešek Jan | C20: Slavoj Plzeň | D20: 375 | E20: 161 | F20: 536 | G20: 6 | H20: Loukotka Václav | I20: Slavoj Plzeň | J20: 380 | K20: 165 | L20: 545 | M20: 4 | N20: 755 | O20: 326 | P20: 1081 | Q20: 10
A21: 20 | B21: Hlaváč Václav | C21: K.Vary | D21: 386 | E21: 160 | F21: 546 | G21: 12 | H21: Hlaváč David | I21: K.Vary | J21: 358 | K21: 174 | L21: 532 | M21: 7 | N21: 744 | O21: 334 | P21: 1078 | Q21: 19
A22: 21 | B22: Potůček Miroslav | C22: Loko UL | D22: 357 | E22: 201 | F22: 558 | G22: 8 | H22: Wedlich Miroslav | I22: Loko UL | J22: 362 | K22: 154 | L22: 516 | M22: 7 | N22: 719 | O22: 355 | P22: 1074 | Q22: 15
A23: 22 | B23: Kříž Jan | C23: Slavoj Plzeň | D23: 352 | E23: 173 | F23: 525 | G23: 3 | H23: Kaas Jáchym | I23: Slavoj Plzeň | J23: 370 | K23: 178 | L23: 548 | M23: 6 | N23: 722 | O23: 351 | P23: 1073 | Q23: 9
A24: 23 | B24: Wengler Dieter | C24: Zwiessel | D24: 390 | E24: 129 | F24: 519 | G24: 15 | H24: Potůček Miroslav | I24: Zwiessel | J24: 361 | K24: 191 | L24: 552 | M24: 5 | N24: 751 | O24: 320 | P24: 1071 | Q24: 20
A25: 24 | B25: Vorlický Jaroslav | C25: Loko UL | D25: 338 | E25: 156 | F25: 494 | G25: 11 | H25: Šimsa Michal | I25: Teplice | J25: 374 | K25: 201 | L25: 575 | M25: 7 | N25: 712 | O25: 357 | P25: 1069 | Q25: 18
A26: 25 | B26: Knoth Andreas | C26: SV Rot Kreuz | D26: 398 | E26: 175 | F26: 573 | G26: 5 | H26: Gneist Toni | I26: SV Rot Kreuz | J26: 360 | K26: 133 | L26: 493 | M26: 16 | N26: 758 | O26: 308 | P26: 1066 | Q26: 21
A27: 26 | B27: Zuzánek Jaroslav | C27: Zwiessel | D27: 370 | E27: 196 | F27: 566 | G27: 11 | H27: Fischer Max | I27: Zwiessel | J27: 352 | K27: 146 | L27: 498 | M27: 14 | N27: 722 | O27: 342 | P27: 1064 | Q27: 25
A28: 27 | B28: Šmelhaus Petr | C28: Č.Kamenice | D28: 357 | E28: 163 | F28: 520 | G28: 9 | H28: Beran Karel | I28: Č.Kamenice | J28: 366 | K28: 178 | L28: 544 | M28: 5 | N28: 723 | O28: 341 | P28: 1064 | Q28: 14
A29: 28 | B29: Wedlich Miroslav | C29: Loko UL | D29: 363 | E29: 157 | F29: 520 | G29: 8 | H29: Grejtovský Milan | I29: Loko UL | J29: 387 | K29: 156 | L29: 543 | M29: 6 | N29: 750 | O29: 313 | P29: 1063 | Q29: 14
A30: 29 | B30: Jalovecký Radek | C30: Loko UL | D30: 340 | E30: 149 | F30: 489 | G30: 14 | H30: Potůček Miroslav | I30: Zwiessel | J30: 369 | K30: 203 | L30: 572 | M30: 6 | N30: 709 | O30: 352 | P30: 1061 | Q30: 20
A31: 30 | B31: Šípek Jiří | C31: Loko UL | D31: 358 | E31: 158 | F31: 516 | G31: 5 | H31: Wedlich Mirolsav | I31: Loko UL | J31: 393 | K31: 151 | L31: 544 | M31: 7 | N31: 751 | O31: 309 | P31: 1060 | Q31: 12
A32: 31 | B32: Uhlíř Lukáš | C32: Bílina | D32: 361 | E32: 197 | F32: 558 | G32: 4 | H32: Čecho Martin | I32: Bílina | J32: 384 | K32: 116 | L32: 500 | M32: 12 | N32: 745 | O32: 313 | P32: 1058 | Q32: 16
A33: 32 | B33: Fenzl Karl | C33: Zwiessel | D33: 365 | E33: 159 | F33: 524 | G33: 10 | H33: Wengler Dieter | I33: Zwiessel | J33: 348 | K33: 173 | L33: 521 | M33: 9 | N33: 713 | O33: 332 | P33: 1045 | Q33: 19
A34: 33 | B34: Woš Jiří | C34: Bohušovice | D34: 362 | E34: 186 | F34: 548 | G34: 5 | H34: Ondráček Jaroslav | I34: Bohušovice | J34: 359 | K34: 138 | L34: 497 | M34: 12 | N34: 721 | O34: 324 | P34: 1045 | Q34: 17
A35: 34 | B35: Ramajzl Zdenek | C35: Loko UL | D35: 351 | E35: 132 | F35: 483 | G35: 18 | H35: Rauner Zdeněk | I35: Lokol UL | J35: 372 | K35: 184 | L35: 556 | M35: 6 | N35: 723 | O35: 316 | P35: 1039 | Q35: 24
A36: 35 | B36: Zuzánek Jaroslav | C36: Zwiessel | D36: 375 | E36: 160 | F36: 535 | G36: 5 | H36: Wengler Dieter | I36: Zwiessel | J36: 353 | K36: 151 | L36: 504 | M36: 11 | N36: 728 | O36: 311 | P36: 1039 | Q36: 16
A37: 36 | B37: Ditz Matěj | C37: Rokytnice | D37: 360 | E37: 168 | F37: 528 | G37: 8 | H37: Hanout Filip | I37: Rokytnice | J37: 337 | K37: 173 | L37: 510 | M37: 9 | N37: 697 | O37: 341 | P37: 1038 | Q37: 17
A38: 37 | B38: Fischer Max | C38: Zwiessel | D38: 352 | E38: 155 | F38: 507 | G38: 8 | H38: Zuzánek Jaroslav | I38: Zwiessel | J38: 365 | K38: 166 | L38: 531 | M38: 9 | N38: 717 | O38: 321 | P38: 1038 | Q38: 17
A39: 38 | B39: Kasal Pavel | C39: Rudná | D39: 380 | E39: 143 | F39: 523 | G39: 9 | H39: Lesák Adam | I39: Rudná | J39: 353 | K39: 159 | L39: 512 | M39: 7 | N39: 733 | O39: 302 | P39: 1035 | Q39: 16
A40: 39 | B40: Woš Jiří | C40: Bohušovice | D40: 351 | E40: 149 | F40: 500 | G40: 13 | H40: Ondráček Jaroslav | I40: Bohušovice | J40: 378 | K40: 146 | L40: 524 | M40: 11 | N40: 729 | O40: 295 | P40: 1024 | Q40: 24
A41: 40 | B41: Zuzánek Jaroslav | C41: Zwiessel | D41: 333 | E41: 141 | F41: 474 | G41: 14 | H41: Fenzl Karl | I41: Zwiessel | J41: 373 | K41: 174 | L41: 547 | M41: 11 | N41: 706 | O41: 315 | P41: 1021 | Q41: 25
A42: 41 | B42: Jahoda Ladislav | C42: Sokol UL | D42: 358 | E42: 167 | F42: 525 | G42: 11 | H42: Wolf Jindřich | I42: Sokol UL | J42: 333 | K42: 148 | L42: 481 | M42: 11 | N42: 691 | O42: 315 | P42: 1006 | Q42: 22
A43: 42 | B43: Plšek Jiří | C43: Žatec | D43: 342 | E43: 136 | F43: 478 | G43: 19 | H43: Ambra Jan | I43: Žatec | J43: 360 | K43: 151 | L43: 511 | M43: 6 | N43: 702 | O43: 287 | P43: 989 | Q43: 25
A44: 43 | B44: Bruthans Michal | C44: Lovosice | D44: 340 | E44: 147 | F44: 487 | G44: 15 | H44: Zalabák Petr | I44: Lovosice | J44: 364 | K44: 138 | L44: 502 | M44: 10 | N44: 704 | O44: 285 | P44: 989 | Q44: 25
A45: 44 | B45: Machulka Radek | C45: Rudná | D45: 372 | E45: 173 | F45: 545 | G45: 9 | H45: Koščo Peter | I45: Rudná | J45: 316 | K45: 113 | L45: 429 | M45: 17 | N45: 688 | O45: 286 | P45: 974 | Q45: 26
A46: 45 | B46: Bek Tomáš | C46: V.Popovice | D46: 366 | E46: 141 | F46: 507 | G46: 15 | H46: Svoboda Petr | I46: V.Popovice | J46: 340 | K46: 106 | L46: 446 | M46: 17 | N46: 706 | O46: 247 | P46: 953 | Q46: 32
A47: 46 | B47: Fenzl Karl | C47: Zwiessel | D47: 328 | E47: 160 | F47: 488 | G47: 8 | H47: Fischer Max | I47: Zwiessel | J47: 345 | K47: 96 | L47: 441 | M47: 23 | N47: 673 | O47: 256 | P47: 929 | Q47: 31
A48: 47 | B48: Vondráček František | C48: Konstruktiva | D48: 338 | E48: 116 | F48: 454 | G48: 19 | H48: Lébl Zbyněk | I48: Konstruktiva | J48: 335 | K48: 138 | L48: 473 | M48: 14 | N48: 673 | O48: 254 | P48: 927 | Q48: 33
A49: 48 | B49: Kasal Pavel | C49: Rudná | D49: 386 | E49: 157 | F49: 543 | G49: 8 | H49: Lesák Adrian | I49: Rudná | J49: 258 | K49: 82 | L49: 340 | M49: 31 | N49: 644 | O49: 239 | P49: 883 | Q49: 39
A50: 49 | B50: Pavlík Tomáš | C50: K.Vary | D50: 380 | E50: 209 | F50: 589 | G50: 2 | H50: Pavlík Samuel | I50: K.Vary | J50: 168 | K50: 18 | L50: 186 | M50: 6 | N50: 548 | O50: 227 | P50: 775 | Q50: 8

Sheet dvojice ženy
A1: Poř. | B1: Jméno | C1: Oddíl | D1: plné | E1: dor. | F1: celkem | G1: chyby | H1: Jméno | I1: Oddíl | J1: plné | K1: dor. | L1: celkem | M1: chyby | N1: plné | O1: dor. | P1: celkem | Q1: chyby
A2: 1 | B2: Vorlická Kristýna | C2: Loko UL | D2: 381 | E2: 184 | F2: 565 | G2: 4 | H2: Vohnoutová Šárka | I2: Loko UL | J2: 383 | K2: 180 | L2: 563 | M2: 5 | N2: 764 | O2: 364 | P2: 1128 | Q2: 9
A3: 2 | B3: Šuterová Michaela | C3: Kovářská | D3: 377 | E3: 170 | F3: 547 | G3: 8 | H3: Šuterová Nela | I3: Podbořany | J3: 383 | K3: 186 | L3: 569 | M3: 6 | N3: 760 | O3: 356 | P3: 1116 | Q3: 14
A4: 3 | B4: Wühr Ingrid | C4: Zwiessel | D4: 362 | E4: 173 | F4: 535 | G4: 3 | H4: Bořutová Marcela | I4: Loko UL | J4: 333 | K4: 187 | L4: 520 | M4: 6 | N4: 695 | O4: 360 | P4: 1055 | Q4: 9
A5: 4 | B5: Seifertová Iveta | C5: Jablonec n.N. | D5: 356 | E5: 155 | F5: 511 | G5: 9 | H5: Floriánová Jana | I5: Jablonec n.N. | J5: 368 | K5: 155 | L5: 523 | M5: 3 | N5: 724 | O5: 310 | P5: 1034 | Q5: 12
A6: 5 | B6: Ambrová Kateřina | C6: Žatec | D6: 354 | E6: 164 | F6: 518 | G6: 17 | H6: Ambrová Barbora | I6: Žatec | J6: 355 | K6: 149 | L6: 504 | M6: 9 | N6: 709 | O6: 313 | P6: 1022 | Q6: 26
A7: 6 | B7: Gembecová Jana | C7: Jablonec n.N. | D7: 304 | E7: 136 | F7: 440 | G7: 14 | H7: Kvapilová Zdena | I7: Jablonec n.N. | J7: 366 | K7: 131 | L7: 497 | M7: 15 | N7: 670 | O7: 267 | P7: 937 | Q7: 29
A8: 7 | B8: Wühr Ingrid | C8: Zwiessel | D8: 365 | E8: 151 | F8: 516 | G8: 12 | H8: Fenzl Kathi | I8: Zwiessel | J8: 266 | K8: 132 | L8: 398 | M8: 18 | N8: 631 | O8: 283 | P8: 914 | Q8: 30
A9: 8 | B9: Švindlová Stanislava | C9: Konstruktiva | D9: 313 | E9: 115 | F9: 428 | G9: 18 | H9: Beranová Jiřina | I9: Konstruktiva | J9: 308 | K9: 113 | L9: 421 | M9: 16 | N9: 621 | O9: 228 | P9: 849 | Q9: 34

Sheet smíšené dvojice
A1: Poř. | B1: Jméno | C1: Oddíl | D1: plné | E1: dor. | F1: celkem | G1: chyby | H1: Jméno | I1: Oddíl | J1: plné | K1: dor. | L1: celkem | M1: chyby | N1: plné | O1: dor. | P1: celkem | Q1: chyby
A2: 1 | B2: Vohnoutová Šárka | C2: Loko UL | D2: 378 | E2: 175 | F2: 553 | G2: 4 | H2: Stránský Milan | I2: Duchcov | J2: 391 | K2: 214 | L2: 605 | M2: 0 | N2: 769 | O2: 389 | P2: 1158 | Q2: 4
A3: 2 | B3: Vohnoutová Šárka | C3: Loko UL | D3: 371 | E3: 176 | F3: 547 | G3: 9 | H3: Stránský Milan | I3: Duchcov | J3: 382 | K3: 204 | L3: 586 | M3: 0 | N3: 753 | O3: 380 | P3: 1133 | Q3: 9
A4: 3 | B4: Vorlická Kristýna | C4: Loko UL | D4: 393 | E4: 188 | F4: 581 | G4: 1 | H4: Dařílek Jakub | I4: Loko UL | J4: 366 | K4: 182 | L4: 548 | M4: 5 | N4: 759 | O4: 370 | P4: 1129 | Q4: 6
A5: 4 | B5: Volf Jan | C5: Rokytnice | D5: 393 | E5: 165 | F5: 558 | G5: 7 | H5: Valášek Milan | I5: Rokytnice | J5: 457 | K5: 112 | L5: 569 | M5: 0 | N5: 850 | O5: 277 | P5: 1127 | Q5: 7
A6: 5 | B6: Novák Miroslav | C6: Rokycany | D6: 370 | E6: 168 | F6: 538 | G6: 11 | H6: Nováková Lenka | I6: Rokycany | J6: 378 | K6: 209 | L6: 587 | M6: 4 | N6: 748 | O6: 377 | P6: 1125 | Q6: 15
A7: 6 | B7: Zeman Jan | C7: Jablonec n.N. | D7: 381 | E7: 187 | F7: 568 | G7: 5 | H7: Petráčková Olga | I7: Jablonec n.N. | J7: 387 | K7: 166 | L7: 553 | M7: 6 | N7: 768 | O7: 353 | P7: 1121 | Q7: 11
A8: 7 | B8: Grejtovský Milan | C8: Loko UL | D8: 381 | E8: 203 | F8: 584 | G8: 2 | H8: Vorlická Kristýna | I8: Loko UL | J8: 366 | K8: 169 | L8: 535 | M8: 6 | N8: 747 | O8: 372 | P8: 1119 | Q8: 8
A9: 8 | B9: Miroslav Soukup | C9: Mikulášovice | D9: 360 | E9: 216 | F9: 576 | G9: 3 | H9: Trojanová Miluše | I9: Mikulášovice | J9: 361 | K9: 173 | L9: 534 | M9: 3 | N9: 721 | O9: 389 | P9: 1110 | Q9: 6
A10: 9 | B10: Jaloveký Radek | C10: Loko UL | D10: 367 | E10: 194 | F10: 561 | G10: 4 | H10: Bořutová Marcela | I10: Loko UL | J10: 361 | K10: 187 | L10: 548 | M10: 7 | N10: 728 | O10: 381 | P10: 1109 | Q10: 11
A11: 10 | B11: Hlaváčová Kateřina | C11: K.Vary | D11: 365 | E11: 139 | F11: 504 | G11: 12 | H11: Bubla Miroslav | I11: Teplá | J11: 376 | K11: 229 | L11: 605 | M11: 1 | N11: 741 | O11: 368 | P11: 1109 | Q11: 13
A12: 11 | B12: Vohnoutová Šárka | C12: Loko UL | D12: 375 | E12: 174 | F12: 549 | G12: 3 | H12: Zahálka Tomáš | I12: Loko UL | J12: 366 | K12: 191 | L12: 557 | M12: 3 | N12: 741 | O12: 365 | P12: 1106 | Q12: 6
A13: 12 | B13: Ptáček Zdeněk | C13: Žatec | D13: 378 | E13: 177 | F13: 555 | G13: 5 | H13: Ptáčková Iveta | I13: Žatec | J13: 386 | K13: 163 | L13: 549 | M13: 7 | N13: 764 | O13: 340 | P13: 1104 | Q13: 12
A14: 13 | B14: Šípek Jiří | C14: Loko UL | D14: 389 | E14: 168 | F14: 557 | G14: 10 | H14: Bořutová Marcela | I14: Loko UL | J14: 388 | K14: 156 | L14: 544 | M14: 6 | N14: 777 | O14: 324 | P14: 1101 | Q14: 16
A15: 14 | B15: Wühr Ingrid | C15: Zwiessel | D15: 353 | E15: 168 | F15: 521 | G15: 8 | H15: Potůček Miroslav | I15: Zwiessel | J15: 355 | K15: 219 | L15: 574 | M15: 3 | N15: 708 | O15: 387 | P15: 1095 | Q15: 11
A16: 15 | B16: Vajnar Petr | C16: Šluknov | D16: 359 | E16: 220 | F16: 579 | G16: 1 | H16: Hlaváčová Daniela | I16: Louny | J16: 386 | K16: 130 | L16: 516 | M16: 13 | N16: 745 | O16: 350 | P16: 1095 | Q16: 14
A17: 16 | B17: Bořutová Marcela | C17: Loko UL | D17: 365 | E17: 154 | F17: 519 | G17: 9 | H17: Potůček Miroslav | I17: Loko UL | J17: 382 | K17: 191 | L17: 573 | M17: 6 | N17: 747 | O17: 345 | P17: 1092 | Q17: 15
A18: 17 | B18: Wedlich Miroslav | C18: Loko UL | D18: 378 | E18: 199 | F18: 577 | G18: 4 | H18: Bořutová Marcela | I18: Loko UL | J18: 373 | K18: 142 | L18: 515 | M18: 11 | N18: 751 | O18: 341 | P18: 1092 | Q18: 15
A19: 18 | B19: Kukeně Patrik | C19: Verneřice | D19: 390 | E19: 167 | F19: 557 | G19: 3 | H19: Marušáková Eliška | I19: Šluknov | J19: 362 | K19: 169 | L19: 531 | M19: 6 | N19: 752 | O19: 336 | P19: 1088 | Q19: 9
A20: 19 | B20: Vohnoutová Šárka | C20: Loko UL | D20: 372 | E20: 186 | F20: 558 | G20: 6 | H20: Málek Petr | I20: Sokol UL | J20: 378 | K20: 150 | L20: 528 | M20: 5 | N20: 750 | O20: 336 | P20: 1086 | Q20: 11
A21: 20 | B21: Kortan Martin | C21: Č.Lípa | D21: 349 | E21: 215 | F21: 564 | G21: 1 | H21: Dunková Alena | I21: Č.Lípa | J21: 373 | K21: 141 | L21: 514 | M21: 4 | N21: 722 | O21: 356 | P21: 1078 | Q21: 5
A22: 21 | B22: Hrubý Petr | C22: Husovice | D22: 383 | E22: 184 | F22: 567 | G22: 9 | H22: Sailerová Anna | I22: Žižkov | J22: 352 | K22: 149 | L22: 501 | M22: 12 | N22: 735 | O22: 333 | P22: 1068 | Q22: 21
A23: 22 | B23: Slavík Roman | C23: Kovo DC | D23: 351 | E23: 182 | F23: 533 | G23: 3 | H23: Exnerová Adéla | I23: Kovo DC | J23: 372 | K23: 151 | L23: 523 | M23: 13 | N23: 723 | O23: 333 | P23: 1056 | Q23: 16
A24: 23 | B24: Vesecká Petra | C24: Konstruktiva | D24: 347 | E24: 140 | F24: 487 | G24: 14 | H24: Vesecký Stanislav | I24: Konstruktiva | J24: 371 | K24: 191 | L24: 562 | M24: 10 | N24: 718 | O24: 331 | P24: 1049 | Q24: 24
A25: 24 | B25: Wengler Dieter | C25: Zwiessel | D25: 349 | E25: 174 | F25: 523 | G25: 12 | H25: Wühr Ingrid | I25: Zwiessel | J25: 373 | K25: 152 | L25: 525 | M25: 11 | N25: 722 | O25: 326 | P25: 1048 | Q25: 23
A26: 25 | B26: Exner Filip | C26: Loko UL | D26: 397 | E26: 172 | F26: 569 | G26: 4 | H26: Vrabcová Anna | I26: Č.Lípa | J26: 357 | K26: 119 | L26: 476 | M26: 15 | N26: 754 | O26: 291 | P26: 1045 | Q26: 19
A27: 26 | B27: Sedláčková Irini | C27: Žižkov | D27: 369 | E27: 176 | F27: 545 | G27: 6 | H27: Kašpar Jiří | I27: Admira | J27: 328 | K27: 170 | L27: 498 | M27: 9 | N27: 697 | O27: 346 | P27: 1043 | Q27: 15
A28: 27 | B28: Kýhos Miroslav | C28: Rudná | D28: 376 | E28: 113 | F28: 489 | G28: 18 | H28: Zimáková Jarmila | I28: Rudná | J28: 360 | K28: 194 | L28: 554 | M28: 6 | N28: 736 | O28: 307 | P28: 1043 | Q28: 24
A29: 28 | B29: Strachoňová Květa | C29: Loko UL | D29: 342 | E29: 154 | F29: 496 | G29: 9 | H29: Sekyra Vít | I29: Loko UL | J29: 395 | K29: 149 | L29: 544 | M29: 8 | N29: 737 | O29: 303 | P29: 1040 | Q29: 17
A30: 29 | B30: Fišer Tomáš | C30: Verneřice | D30: 347 | E30: 152 | F30: 499 | G30: 13 | H30: Vohnoutová Šárka | I30: Loko UL | J30: 361 | K30: 172 | L30: 533 | M30: 4 | N30: 708 | O30: 324 | P30: 1032 | Q30: 17
A31: 30 | B31: Heisig Rudolf | C31: Rýmařov | D31: 362 | E31: 159 | F31: 521 | G31: 7 | H31: Jurášová Alena | I31: Rýmařov | J31: 355 | K31: 153 | L31: 508 | M31: 15 | N31: 717 | O31: 312 | P31: 1029 | Q31: 22
A32: 31 | B32: Hanout Pavel | C32: Rokytnice | D32: 359 | E32: 157 | F32: 516 | G32: 9 | H32: Tulková Zuzana | I32: Rokytnice | J32: 362 | K32: 149 | L32: 511 | M32: 10 | N32: 721 | O32: 306 | P32: 1027 | Q32: 19
A33: 32 | B33: Ledwoň Martin | C33: Verneřice | D33: 379 | E33: 139 | F33: 518 | G33: 15 | H33: Ledwoňová Kamila | I33: Verneřice | J33: 373 | K33: 135 | L33: 508 | M33: 13 | N33: 752 | O33: 274 | P33: 1026 | Q33: 28
A34: 33 | B34: Šuterová Michaela | C34: Duchcov | D34: 365 | E34: 164 | F34: 529 | G34: 8 | H34: Semelka Jiří | I34: Duchcov | J34: 368 | K34: 127 | L34: 495 | M34: 11 | N34: 733 | O34: 291 | P34: 1024 | Q34: 19
A35: 34 | B35: Puschová Simona | C35: Sokol UL | D35: 339 | E35: 149 | F35: 488 | G35: 16 | H35: Nováček Pavel | I35: Sokol UL | J35: 365 | K35: 168 | L35: 533 | M35: 12 | N35: 704 | O35: 317 | P35: 1021 | Q35: 28
A36: 35 | B36: Zítka Lukáš | C36: Verneřice | D36: 368 | E36: 140 | F36: 508 | G36: 12 | H36: Šťastná Simona | I36: Nový Bor | J36: 357 | K36: 144 | L36: 501 | M36: 9 | N36: 725 | O36: 284 | P36: 1009 | Q36: 21
A37: 36 | B37: Zichová Libuše | C37: Konstruktiva | D37: 358 | E37: 164 | F37: 522 | G37: 12 | H37: Musil Bohumír | I37: Konstruktiva | J37: 328 | K37: 148 | L37: 476 | M37: 12 | N37: 686 | O37: 312 | P37: 998 | Q37: 24
A38: 37 | B38: Soukupová Monika | C38: Mikulášovice | D38: 358 | E38: 161 | F38: 519 | G38: 11 | H38: Kalousek Petr | I38: Mikulášovice | J38: 331 | K38: 148 | L38: 479 | M38: 10 | N38: 689 | O38: 309 | P38: 998 | Q38: 21
A39: 38 | B39: Mach Radek | C39: Verneřice | D39: 354 | E39: 148 | F39: 502 | G39: 8 | H39: Machová Hana | I39: Verneřice | J39: 348 | K39: 140 | L39: 488 | M39: 20 | N39: 702 | O39: 288 | P39: 990 | Q39: 28
A40: 39 | B40: Fischer Max | C40: Zwiessel | D40: 361 | E40: 146 | F40: 507 | G40: 10 | H40: Fenzl Kathi | I40: Zwiessel | J40: 310 | K40: 147 | L40: 457 | M40: 16 | N40: 671 | O40: 293 | P40: 964 | Q40: 26
A41: 40 | B41: Sottnerová Jitka | C41: Loko UL | D41: 324 | E41: 149 | F41: 473 | G41: 9 | H41: Ramajzl Zdenek | I41: Loko UL | J41: 340 | K41: 144 | L41: 484 | M41: 11 | N41: 664 | O41: 293 | P41: 957 | Q41: 20
A42: 41 | B42: Keller Tomáš | C42: Rudná | D42: 330 | E42: 121 | F42: 451 | G42: 16 | H42: Koščová Petra | I42: Rudná | J42: 330 | K42: 163 | L42: 493 | M42: 6 | N42: 660 | O42: 284 | P42: 944 | Q42: 22
A43: 42 | B43: Janoušková Markéta | C43: Rokytnice | D43: 305 | E43: 123 | F43: 428 | G43: 16 | H43: Janoušek Miloš | I43: Rokytnice | J43: 360 | K43: 151 | L43: 511 | M43: 12 | N43: 665 | O43: 274 | P43: 939 | Q43: 28
A44: 43 | B44: Graz Alena | C44: Rudná | D44: 335 | E44: 156 | F44: 491 | G44: 16 | H44: Koščo Tadeáš | I44: Rudná | J44: 319 | K44: 122 | L44: 441 | M44: 17 | N44: 654 | O44: 278 | P44: 932 | Q44: 33

Sheet muži-jednotlivci
A1: Poř. | B1: Datum | C1: Jméno | D1: Oddíl | E1: dr. | F1: plné | G1: dor. | H1: celkem | I1: chyby | J1: dr. | K1: plné | L1: dor. | M1: celkem | N1: chyby | O1: dr. | P1: plné | Q1: dor. | R1: celkem | S1: chyby | T1: dr. | U1: plné | V1: dor. | W1: celkem | X1: chyby | Y1: plné | Z1: dor. | AA1: celkem | AB1: chyby
A2: 1 | B2: 45826 | C2: Dařílek Jakub | D2: Loko UL | E2: 4 | F2: 102 | G2: =H2-F2 -> 54 | H2: 156 | I2: 0 | J2: 3 | K2: 84 | L2: =M2-K2 -> 70 | M2: 154 | N2: 0 | O2: 1 | P2: 90 | Q2: =R2-P2 -> 71 | R2: 161 | S2: 0 | T2: 2 | U2: 97 | V2: =W2-U2 -> 51 | W2: 148 | X2: 1 | Y2: =SUM(F2,K2,P2,U2) -> 373 | Z2: =SUM(G2,L2,Q2,V2) -> 246 | AA2: =SUM(H2,M2,R2,W2) -> 619 | AB2: =SUM(I2,N2,S2,X2) -> 1
A3: 2 | B3: 45830 | C3: Pavlík Tomáš | D3: K.Vary | E3: 4 | F3: 101 | G3: 67 | H3: 168 | I3: 1 | J3: 3 | K3: 85 | L3: 52 | M3: 137 | N3: 0 | O3: 1 | P3: 98 | Q3: 35 | R3: 133 | S3: 1 | T3: 2 | U3: 108 | V3: 71 | W3: 179 | X3: 0 | Y3: 392 | Z3: 225 | AA3: 617 | AB3: 2
A4: 3 | B4: 45829 | C4: Zahálka Tomáš | D4: Loko UL | E4: 1 | F4: 107 | G4: 60 | H4: 167 | I4: 1 | J4: 2 | K4: 97 | L4: 53 | M4: 150 | N4: 1 | O4: 4 | P4: 92 | Q4: 66 | R4: 158 | S4: 2 | T4: 3 | U4: 88 | V4: 53 | W4: 141 | X4: 1 | Y4: 384 | Z4: 232 | AA4: 616 | AB4: 5
A5: 4 | B5: 45827 | C5: Stránský Milan | D5: Duchcov | E5: 1 | F5: 101 | G5: 52 | H5: 153 | I5: 0 | J5: 2 | K5: 90 | L5: 44 | M5: 134 | N5: 0 | O5: 4 | P5: 103 | Q5: 72 | R5: 175 | S5: 0 | T5: 3 | U5: 99 | V5: 53 | W5: 152 | X5: 0 | Y5: 393 | Z5: 221 | AA5: 614 | AB5: 0
A6: 5 | B6: 45822 | C6: Bubla Miroslav | D6: Teplá | E6: 4 | F6: 95 | G6: 54 | H6: 149 | I6: 0 | J6: 3 | K6: 92 | L6: 52 | M6: 144 | N6: 0 | O6: 1 | P6: 93 | Q6: 61 | R6: 154 | S6: 1 | T6: 2 | U6: 96 | V6: 62 | W6: 158 | X6: 0 | Y6: 376 | Z6: 229 | AA6: 605 | AB6: 1
A7: 6 | B7: 45830 | C7: Stránský Milan | D7: Duchcov | E7: 3 | F7: 95 | G7: 54 | H7: 149 | I7: 0 | J7: 4 | K7: 99 | L7: 53 | M7: 152 | N7: 0 | O7: 2 | P7: 94 | Q7: 44 | R7: 138 | S7: 0 | T7: 1 | U7: 103 | V7: 63 | W7: 166 | X7: 0 | Y7: 391 | Z7: 214 | AA7: 605 | AB7: 0
A8: 7 | B8: 45825 | C8: Martin Zahálka | D8: Loko UL | E8: 3 | F8: 104 | G8: 59 | H8: 163 | I8: 0 | J8: 4 | K8: 104 | L8: 43 | M8: 147 | N8: 0 | O8: 2 | P8: 94 | Q8: 53 | R8: 147 | S8: 0 | T8: 1 | U8: 100 | V8: 44 | W8: 144 | X8: 3 | Y8: 402 | Z8: 199 | AA8: 601 | AB8: 3
A9: 8 | B9: 45829 | C9: Oeschägel Philipp | D9: SV Diggli | E9: 2 | F9: 80 | G9: 53 | H9: 133 | I9: 1 | J9: 1 | K9: 96 | L9: 53 | M9: 149 | N9: 0 | O9: 3 | P9: 106 | Q9: 49 | R9: 155 | S9: 0 | T9: 4 | U9: 85 | V9: 70 | W9: 155 | X9: 1 | Y9: 367 | Z9: 225 | AA9: 592 | AB9: 2
A10: 9 | B10: 45830 | C10: Pavlík Tomáš | D10: K.Vary | E10: 2 | F10: 103 | G10: 35 | H10: 138 | I10: 1 | J10: 1 | K10: 93 | L10: 54 | M10: 147 | N10: 0 | O10: 3 | P10: 91 | Q10: 57 | R10: 148 | S10: 0 | T10: 4 | U10: 93 | V10: 63 | W10: 156 | X10: 1 | Y10: 380 | Z10: 209 | AA10: 589 | AB10: 2
A11: 10 | B11: 45825 | C11: Stránský Milan | D11: Duchcov | E11: 4 | F11: 93 | G11: 51 | H11: 144 | I11: 0 | J11: 3 | K11: 91 | L11: 63 | M11: 154 | N11: 0 | O11: 1 | P11: 96 | Q11: 45 | R11: 141 | S11: 0 | T11: 2 | U11: 102 | V11: 45 | W11: 147 | X11: 0 | Y11: 382 | Z11: 204 | AA11: 586 | AB11: 0
A12: 11 | B12: 45825 | C12: Málek Petr | D12: Sokol UL | E12: 3 | F12: 104 | G12: 47 | H12: 151 | I12: 0 | J12: 4 | K12: 98 | L12: 49 | M12: 147 | N12: 2 | O12: 2 | P12: 106 | Q12: 42 | R12: 148 | S12: 3 | T12: 1 | U12: 95 | V12: 45 | W12: 140 | X12: 2 | Y12: 403 | Z12: 183 | AA12: 586 | AB12: 7
A13: 12 | B13: 45826 | C13: Grejtovský Milan | D13: Loko UL | E13: 2 | F13: 91 | G13: 47 | H13: 138 | I13: 0 | J13: 1 | K13: 101 | L13: 35 | M13: 136 | N13: 1 | O13: 3 | P13: 93 | Q13: 49 | R13: 142 | S13: 1 | T13: 4 | U13: 96 | V13: 72 | W13: 168 | X13: 0 | Y13: 381 | Z13: 203 | AA13: 584 | AB13: 2
A14: 13 | B14: 45827 | C14: Mach Radek | D14: Verneřice | E14: 3 | F14: 90 | G14: 52 | H14: 142 | I14: 0 | J14: 4 | K14: 97 | L14: 40 | M14: 137 | N14: 4 | O14: 2 | P14: 87 | Q14: 72 | R14: 159 | S14: 1 | T14: 1 | U14: 99 | V14: 43 | W14: 142 | X14: 1 | Y14: 373 | Z14: 207 | AA14: 580 | AB14: 6
A15: 14 | B15: 45825 | C15: Tomáš Zahálka | D15: Loko UL | E15: 1 | F15: 102 | G15: 36 | H15: 138 | I15: 2 | J15: 2 | K15: 93 | L15: 43 | M15: 136 | N15: 0 | O15: 4 | P15: 104 | Q15: 53 | R15: 157 | S15: 1 | T15: 3 | U15: 104 | V15: 45 | W15: 149 | X15: 1 | Y15: 403 | Z15: 177 | AA15: 580 | AB15: 4
A16: 15 | B16: 45830 | C16: Vajnar Petr | D16: Šluknov | E16: 2 | F16: 91 | G16: 62 | H16: 153 | I16: 0 | J16: 1 | K16: 93 | L16: 53 | M16: 146 | N16: 0 | O16: 3 | P16: 88 | Q16: 60 | R16: 148 | S16: 1 | T16: 4 | U16: 87 | V16: 45 | W16: 132 | X16: 0 | Y16: 359 | Z16: 220 | AA16: 579 | AB16: 1
A17: 16 | B17: 45826 | C17: Wedlich Miroslav | D17: Loko UL | E17: 1 | F17: 91 | G17: 51 | H17: 142 | I17: 0 | J17: 2 | K17: 98 | L17: 51 | M17: 149 | N17: 1 | O17: 4 | P17: 88 | Q17: 45 | R17: 133 | S17: 2 | T17: 3 | U17: 101 | V17: 52 | W17: 153 | X17: 1 | Y17: 378 | Z17: 199 | AA17: 577 | AB17: 4
A18: 17 | B18: 45821 | C18: Miroslav Soukup | D18: Mikulášovice | E18: 2 | F18: 89 | G18: 36 | H18: 125 | I18: 0 | J18: 1 | K18: 97 | L18: 60 | M18: 157 | N18: 0 | O18: 3 | P18: 90 | Q18: 59 | R18: 149 | S18: 3 | T18: 4 | U18: 84 | V18: 61 | W18: 145 | X18: 0 | Y18: 360 | Z18: 216 | AA18: 576 | AB18: 3
A19: 18 | B19: 45829 | C19: Pohl Nikita | D19: SV Süßkirsch | E19: 2 | F19: 80 | G19: 54 | H19: 134 | I19: 0 | J19: 1 | K19: 92 | L19: 53 | M19: 145 | N19: 2 | O19: 3 | P19: 94 | Q19: 54 | R19: 148 | S19: 0 | T19: 3 | U19: 94 | V19: 54 | W19: 148 | X19: 0 | Y19: 360 | Z19: 215 | AA19: 575 | AB19: 2
A20: 19 | B20: 45822 | C20: Šimsa Michal | D20: Teplice | E20: 4 | F20: 101 | G20: 35 | H20: 136 | I20: 2 | J20: 3 | K20: 91 | L20: 53 | M20: 144 | N20: 1 | O20: 1 | P20: 90 | Q20: 45 | R20: 135 | S20: 3 | T20: 2 | U20: 92 | V20: 68 | W20: 160 | X20: 1 | Y20: 374 | Z20: 201 | AA20: 575 | AB20: 7
A21: 20 | B21: 45828 | C21: Potůček Miroslav | D21: Zwiessel | E21: 4 | F21: 91 | G21: 54 | H21: 145 | I21: 0 | J21: 3 | K21: 86 | L21: 59 | M21: 145 | N21: 0 | O21: 1 | P21: 91 | Q21: 45 | R21: 136 | S21: 1 | T21: 2 | U21: 87 | V21: 61 | W21: 148 | X21: 2 | Y21: 355 | Z21: 219 | AA21: 574 | AB21: 3
A22: 21 | B22: 45825 | C22: Potůček Miroslav | D22: Loko UL | E22: 4 | F22: 96 | G22: 40 | H22: 136 | I22: 0 | J22: 3 | K22: 87 | L22: 54 | M22: 141 | N22: 0 | O22: 1 | P22: 94 | Q22: 35 | R22: 129 | S22: 4 | T22: 2 | U22: 105 | V22: 62 | W22: 167 | X22: 2 | Y22: 382 | Z22: 191 | AA22: 573 | AB22: 6
A23: 22 | B23: 45829 | C23: Knoth Andreas | D23: SV Rot Kreuz | E23: 1 | F23: 89 | G23: 35 | H23: 124 | I23: 2 | J23: 2 | K23: 96 | L23: 45 | M23: 141 | N23: 0 | O23: 4 | P23: 110 | Q23: 52 | R23: 162 | S23: 0 | T23: 3 | U23: 103 | V23: 43 | W23: 146 | X23: 3 | Y23: 398 | Z23: 175 | AA23: 573 | AB23: 5
A24: 23 | B24: 45829 | C24: Potůček Miroslav | D24: Zwiessel | E24: 4 | F24: 92 | G24: 48 | H24: 140 | I24: 1 | J24: 3 | K24: 95 | L24: 39 | M24: 134 | N24: 3 | O24: 1 | P24: 82 | Q24: 62 | R24: 144 | S24: 1 | T24: 2 | U24: 100 | V24: 54 | W24: 154 | X24: 1 | Y24: 369 | Z24: 203 | AA24: 572 | AB24: 6
A25: 24 | B25: 45821 | C25: Kubita Vratislav | D25: Kovo DC | E25: 3 | F25: 85 | G25: 57 | H25: 142 | I25: 0 | J25: 4 | K25: 94 | L25: 52 | M25: 146 | N25: 3 | O25: 2 | P25: 96 | Q25: 61 | R25: 157 | S25: 1 | T25: 1 | U25: 91 | V25: 34 | W25: 125 | X25: 0 | Y25: 366 | Z25: 204 | AA25: 570 | AB25: 4
A26: 25 | B26: 45826 | C26: Štraicher Tomáš | D26: Loko UL | E26: 2 | F26: 96 | G26: 34 | H26: 130 | I26: 0 | J26: 1 | K26: 98 | L26: 53 | M26: 151 | N26: 0 | O26: 3 | P26: 91 | Q26: 63 | R26: 154 | S26: 1 | T26: 4 | U26: 99 | V26: 36 | W26: 135 | X26: 0 | Y26: 384 | Z26: 186 | AA26: 570 | AB26: 1
A27: 26 | B27: 45822 | C27: Přeučil Roman | D27: Vršovice | E27: 2 | F27: 105 | G27: 43 | H27: 148 | I27: 0 | J27: 1 | K27: 88 | L27: 45 | M27: 133 | N27: 0 | O27: 3 | P27: 92 | Q27: 44 | R27: 136 | S27: 3 | T27: 4 | U27: 100 | V27: 53 | W27: 153 | X27: 1 | Y27: 385 | Z27: 185 | AA27: 570 | AB27: 4
A28: 27 | B28: 45822 | C28: Exner Filip | D28: Loko UL | E28: 1 | F28: 103 | G28: 63 | H28: 166 | I28: 1 | J28: 2 | K28: 93 | L28: 44 | M28: 137 | N28: 1 | O28: 4 | P28: 98 | Q28: 38 | R28: 136 | S28: 0 | T28: 3 | U28: 103 | V28: 27 | W28: 130 | X28: 2 | Y28: 397 | Z28: 172 | AA28: 569 | AB28: 4
A29: 28 | B29: 45829 | C29: Valášek Milan | D29: Rokytnice | E29: 3 | F29: 89 | G29: 44 | H29: 133 | I29: 0 | J29: 4 | K29: 89 | L29: 42 | M29: 131 | N29: 0 | O29: 2 | P29: 88 | Q29: 63 | R29: 151 | S29: 0 | T29: 1 | U29: 191 | V29: -37 | W29: 154 | X29: 0 | Y29: 457 | Z29: 112 | AA29: 569 | AB29: 0
A30: 29 | B30: 45830 | C30: Zeman Jan | D30: Jablonec n.N. | E30: 1 | F30: 103 | G30: 36 | H30: 139 | I30: 0 | J30: 2 | K30: 90 | L30: 45 | M30: 135 | N30: 1 | O30: 4 | P30: 87 | Q30: 44 | R30: 131 | S30: 2 | T30: 3 | U30: 101 | V30: 62 | W30: 163 | X30: 2 | Y30: 381 | Z30: 187 | AA30: 568 | AB30: 5
A31: 30 | B31: 45829 | C31: Šípek Jiří | D31: Loko UL | E31: 1 | F31: 86 | G31: 42 | H31: 128 | I31: 2 | J31: 2 | K31: 104 | L31: 32 | M31: 136 | N31: 2 | O31: 4 | P31: 91 | Q31: 52 | R31: 143 | S31: 1 | T31: 3 | U31: 98 | V31: 62 | W31: 160 | X31: 0 | Y31: 379 | Z31: 188 | AA31: 567 | AB31: 5
A32: 31 | B32: 45823 | C32: Hrubý Petr | D32: Husovice | E32: 2 | F32: 93 | G32: 51 | H32: 144 | I32: 1 | J32: 1 | K32: 88 | L32: 53 | M32: 141 | N32: 3 | O32: 3 | P32: 100 | Q32: 36 | R32: 136 | S32: 2 | T32: 4 | U32: 102 | V32: 44 | W32: 146 | X32: 3 | Y32: 383 | Z32: 184 | AA32: 567 | AB32: 9
A33: 32 | B33: 45824 | C33: Chot Jaroslav | D33: Lovosice | E33: 4 | F33: 99 | G33: 36 | H33: 135 | I33: 1 | J33: 3 | K33: 82 | L33: 45 | M33: 127 | N33: 2 | O33: 1 | P33: 88 | Q33: 63 | R33: 151 | S33: 1 | T33: 2 | U33: 119 | V33: 35 | W33: 154 | X33: 3 | Y33: 388 | Z33: 179 | AA33: 567 | AB33: 7
A34: 33 | B34: 45828 | C34: Zuzánek Jaroslav | D34: Zwiessel | E34: 1 | F34: 90 | G34: =H34-F34 -> 61 | H34: 151 | I34: 1 | J34: 2 | K34: 96 | L34: =M34-K34 -> 45 | M34: 141 | N34: 2 | O34: 4 | P34: 95 | Q34: =R34-P34 -> 63 | R34: 158 | S34: 0 | T34: 3 | U34: 89 | V34: =W34-U34 -> 27 | W34: 116 | X34: 8 | Y34: =SUM(F34,K34,P34,U34) -> 370 | Z34: =SUM(G34,L34,Q34,V34) -> 196 | AA34: =SUM(H34,M34,R34,W34) -> 566 | AB34: =SUM(I34,N34,S34,X34) -> 11
A35: 34 | B35: 45824 | C35: Charvát Tomáš | D35: Lovosice | E35: 2 | F35: 91 | G35: 53 | H35: 144 | I35: 2 | J35: 1 | K35: 94 | L35: 44 | M35: 138 | N35: 2 | O35: 3 | P35: 93 | Q35: 44 | R35: 137 | S35: 3 | T35: 4 | U35: 94 | V35: 52 | W35: 146 | X35: 2 | Y35: 372 | Z35: 193 | AA35: 565 | AB35: 9
A36: 35 | B36: 45823 | C36: Kortan Martin | D36: Č.Lípa | E36: 2 | F36: 83 | G36: 49 | H36: 132 | I36: 1 | J36: 1 | K36: 83 | L36: 50 | M36: 133 | N36: 0 | O36: 3 | P36: 93 | Q36: 62 | R36: 155 | S36: 0 | T36: 4 | U36: 90 | V36: 54 | W36: 144 | X36: 0 | Y36: 349 | Z36: 215 | AA36: 564 | AB36: 1
A37: 36 | B37: 45829 | C37: Zahálka Martin | D37: Loko UL | E37: 3 | F37: 93 | G37: 44 | H37: 137 | I37: 1 | J37: 4 | K37: 85 | L37: 45 | M37: 130 | N37: 1 | O37: 2 | P37: 85 | Q37: 63 | R37: 148 | S37: 0 | T37: 1 | U37: 96 | V37: 53 | W37: 149 | X37: 1 | Y37: 359 | Z37: 205 | AA37: 564 | AB37: 3
A38: 37 | B38: 45830 | C38: Fabián Petr | D38: Teplice | E38: 4 | F38: 96 | G38: 47 | H38: 143 | I38: 1 | J38: 3 | K38: 97 | L38: 36 | M38: 133 | N38: 4 | O38: 1 | P38: 96 | Q38: 54 | R38: 150 | S38: 3 | T38: 2 | U38: 96 | V38: 42 | W38: 138 | X38: 1 | Y38: 385 | Z38: 179 | AA38: 564 | AB38: 9
A39: 38 | B39: 45821 | C39: Piskoř Pavel | D39: Kovo DC | E39: 1 | F39: 96 | G39: 57 | H39: 153 | I39: 1 | J39: 2 | K39: 74 | L39: 40 | M39: 114 | N39: 0 | O39: 4 | P39: 101 | Q39: 58 | R39: 159 | S39: 0 | T39: 3 | U39: 91 | V39: 45 | W39: 136 | X39: 1 | Y39: 362 | Z39: 200 | AA39: 562 | AB39: 2
A40: 39 | B40: 45827 | C40: Vesecký Stanislav | D40: Konstruktiva | E40: 3 | F40: 103 | G40: 42 | H40: 145 | I40: 3 | J40: 4 | K40: 84 | L40: 61 | M40: 145 | N40: 1 | O40: 2 | P40: 100 | Q40: 62 | R40: 162 | S40: 2 | T40: 1 | U40: 84 | V40: 26 | W40: 110 | X40: 4 | Y40: 371 | Z40: 191 | AA40: 562 | AB40: 10
A41: 40 | B41: 45828 | C41: Jaloveký Radek | D41: Loko UL | E41: 2 | F41: 94 | G41: 53 | H41: 147 | I41: 1 | J41: 1 | K41: 90 | L41: 36 | M41: 126 | N41: 3 | O41: 3 | P41: 92 | Q41: 61 | R41: 153 | S41: 0 | T41: 4 | U41: 91 | V41: 44 | W41: 135 | X41: 0 | Y41: 367 | Z41: 194 | AA41: 561 | AB41: 4
A42: 41 | B42: 45827 | C42: Vorlický Jaroslav | D42: Loko UL | E42: 2 | F42: 103 | G42: 39 | H42: 142 | I42: 3 | J42: 1 | K42: 97 | L42: 26 | M42: 123 | N42: 5 | O42: 3 | P42: 92 | Q42: 45 | R42: 137 | S42: 3 | T42: 4 | U42: 90 | V42: 68 | W42: 158 | X42: 0 | Y42: 382 | Z42: 178 | AA42: 560 | AB42: 11
A43: 42 | B43: 45824 | C43: Fabián Petr | D43: Teplice | E43: 4 | F43: 86 | G43: 53 | H43: 139 | I43: 1 | J43: 3 | K43: 106 | L43: 35 | M43: 141 | N43: 5 | O43: 1 | P43: 94 | Q43: 52 | R43: 146 | S43: 0 | T43: 2 | U43: 92 | V43: 41 | W43: 133 | X43: 3 | Y43: 378 | Z43: 181 | AA43: 559 | AB43: 9
A44: 43 | B44: 45825 | C44: Potůček Miroslav | D44: Loko UL | E44: 2 | F44: 81 | G44: 35 | H44: 116 | I44: 3 | J44: 1 | K44: 94 | L44: 71 | M44: 165 | N44: 2 | O44: 3 | P44: 97 | Q44: 41 | R44: 138 | S44: 2 | T44: 4 | U44: 85 | V44: 54 | W44: 139 | X44: 1 | Y44: 357 | Z44: 201 | AA44: 558 | AB44: 8
A45: 44 | B45: 45826 | C45: Uhlíř Lukáš | D45: Bílina | E45: 1 | F45: 90 | G45: 45 | H45: 135 | I45: 1 | J45: 2 | K45: 86 | L45: 36 | M45: 122 | N45: 2 | O45: 4 | P45: 99 | Q45: 45 | R45: 144 | S45: 1 | T45: 3 | U45: 86 | V45: 71 | W45: 157 | X45: 0 | Y45: 361 | Z45: 197 | AA45: 558 | AB45: 4
A46: 45 | B46: 45829 | C46: Volf Jan | D46: Rokytnice | E46: 1 | F46: 96 | G46: 43 | H46: 139 | I46: 2 | J46: 2 | K46: 89 | L46: 44 | M46: 133 | N46: 1 | O46: 4 | P46: 105 | Q46: 35 | R46: 140 | S46: 2 | T46: 3 | U46: 103 | V46: 43 | W46: 146 | X46: 2 | Y46: 393 | Z46: 165 | AA46: 558 | AB46: 7
A47: 46 | B47: 45827 | C47: Zahálka Tomáš | D47: Loko UL | E47: 3 | F47: 100 | G47: 63 | H47: 163 | I47: 0 | J47: 4 | K47: 80 | L47: 41 | M47: 121 | N47: 2 | O47: 2 | P47: 86 | Q47: 44 | R47: 130 | S47: 0 | T47: 1 | U47: 100 | V47: 43 | W47: 143 | X47: 1 | Y47: 366 | Z47: 191 | AA47: 557 | AB47: 3
A48: 47 | B48: 45825 | C48: Šípek Jiří | D48: Loko UL | E48: 1 | F48: 98 | G48: 36 | H48: 134 | I48: 3 | J48: 2 | K48: 95 | L48: 44 | M48: 139 | N48: 3 | O48: 4 | P48: 104 | Q48: 52 | R48: 156 | S48: 0 | T48: 3 | U48: 92 | V48: 36 | W48: 128 | X48: 4 | Y48: 389 | Z48: 168 | AA48: 557 | AB48: 10
A49: 48 | B49: 45821 | C49: Kukeně Patrik | D49: Verneřice | E49: 1 | F49: 97 | G49: 54 | H49: 151 | I49: 1 | J49: 2 | K49: 104 | L49: 35 | M49: 139 | N49: 1 | O49: 4 | P49: 93 | Q49: 42 | R49: 135 | S49: 0 | T49: 3 | U49: 96 | V49: 36 | W49: 132 | X49: 1 | Y49: 390 | Z49: 167 | AA49: 557 | AB49: 3
A50: 49 | B50: 45824 | C50: Salajka Jan | D50: Teplice | E50: 2 | F50: 95 | G50: 52 | H50: 147 | I50: 2 | J50: 1 | K50: 101 | L50: 26 | M50: 127 | N50: 6 | O50: 3 | P50: 105 | Q50: 36 | R50: 141 | S50: 1 | T50: 4 | U50: 100 | V50: 42 | W50: 142 | X50: 1 | Y50: 401 | Z50: 156 | AA50: 557 | AB50: 10
A51: 50 | B51: 45827 | C51: Rauner Zdeněk | D51: Lokol UL | E51: 4 | F51: 97 | G51: 53 | H51: 150 | I51: 1 | J51: 3 | K51: 89 | L51: 52 | M51: 141 | N51: 2 | O51: 1 | P51: 96 | Q51: 36 | R51: 132 | S51: 3 | T51: 2 | U51: 90 | V51: 43 | W51: 133 | X51: 0 | Y51: 372 | Z51: 184 | AA51: 556 | AB51: 6
A52: 51 | B52: 45824 | C52: Šálek Josef | D52: Teplice | E52: 3 | F52: 93 | G52: 41 | H52: 134 | I52: 1 | J52: 4 | K52: 101 | L52: 36 | M52: 137 | N52: 0 | O52: 2 | P52: 101 | Q52: 41 | R52: 142 | S52: 1 | T52: 1 | U52: 83 | V52: 59 | W52: 142 | X52: 0 | Y52: 378 | Z52: 177 | AA52: 555 | AB52: 2
A53: 52 | B53: 45830 | C53: Ptáček Zdeněk | D53: Žatec | E53: 1 | F53: 93 | G53: 52 | H53: 145 | I53: 1 | J53: 2 | K53: 92 | L53: 45 | M53: 137 | N53: 1 | O53: 4 | P53: 94 | Q53: 43 | R53: 137 | S53: 2 | T53: 3 | U53: 99 | V53: 37 | W53: 136 | X53: 1 | Y53: 378 | Z53: 177 | AA53: 555 | AB53: 5
A54: 53 | B54: 45829 | C54: Potůček Miroslav | D54: Zwiessel | E54: 3 | F54: 89 | G54: 53 | H54: 142 | I54: 1 | J54: 4 | K54: 99 | L54: 51 | M54: 150 | N54: 1 | O54: 2 | P54: 85 | Q54: 45 | R54: 130 | S54: 1 | T54: 1 | U54: 88 | V54: 42 | W54: 130 | X54: 2 | Y54: 361 | Z54: 191 | AA54: 552 | AB54: 5
A55: 54 | B55: 45830 | C55: Salajka Jan | D55: Teplice | E55: 2 | F55: 84 | G55: 54 | H55: 138 | I55: 1 | J55: 1 | K55: 89 | L55: 43 | M55: 132 | N55: 4 | O55: 3 | P55: 93 | Q55: 36 | R55: 129 | S55: 0 | T55: 4 | U55: 106 | V55: 45 | W55: 151 | X55: 3 | Y55: 372 | Z55: 178 | AA55: 550 | AB55: 8
A56: 55 | B56: 45825 | C56: Málek Josef | D56: Sokol UL | E56: 1 | F56: 96 | G56: 42 | H56: 138 | I56: 2 | J56: 2 | K56: 92 | L56: 35 | M56: 127 | N56: 1 | O56: 4 | P56: 93 | Q56: 54 | R56: 147 | S56: 1 | T56: 3 | U56: 94 | V56: 44 | W56: 138 | X56: 0 | Y56: 375 | Z56: 175 | AA56: 550 | AB56: 4
A57: 56 | B57: 45824 | C57: Woš Jiří | D57: Bohušovice | E57: 1 | F57: 103 | G57: 34 | H57: 137 | I57: 3 | J57: 2 | K57: 73 | L57: 53 | M57: 126 | N57: 1 | O57: 4 | P57: 101 | Q57: 45 | R57: 146 | S57: 0 | T57: 3 | U57: 85 | V57: 54 | W57: 139 | X57: 1 | Y57: 362 | Z57: 186 | AA57: 548 | AB57: 5
A58: 57 | B58: 45830 | C58: Dařílek Jakub | D58: Loko UL | E58: 3 | F58: 89 | G58: 51 | H58: 140 | I58: 1 | J58: 4 | K58: 91 | L58: 42 | M58: 133 | N58: 0 | O58: 2 | P58: 94 | Q58: 53 | R58: 147 | S58: 1 | T58: 1 | U58: 92 | V58: 36 | W58: 128 | X58: 3 | Y58: 366 | Z58: 182 | AA58: 548 | AB58: 5
A59: 58 | B59: 45823 | C59: Kaas Jáchym | D59: Slavoj Plzeň | E59: 3 | F59: 93 | G59: 53 | H59: 146 | I59: 1 | J59: 4 | K59: 85 | L59: 36 | M59: 121 | N59: 2 | O59: 2 | P59: 96 | Q59: 45 | R59: 141 | S59: 1 | T59: 1 | U59: 96 | V59: 44 | W59: 140 | X59: 2 | Y59: 370 | Z59: 178 | AA59: 548 | AB59: 6
A60: 59 | B60: 45829 | C60: Fenzl Karl | D60: Zwiessel | E60: 4 | F60: 93 | G60: 36 | H60: 129 | I60: 1 | J60: 3 | K60: 96 | L60: 33 | M60: 129 | N60: 5 | O60: 1 | P60: 87 | Q60: 53 | R60: 140 | S60: 3 | T60: 2 | U60: 97 | V60: 52 | W60: 149 | X60: 2 | Y60: 373 | Z60: 174 | AA60: 547 | AB60: 11
A61: 60 | B61: 45827 | C61: Ramajzl Zdenek | D61: Loko UL | E61: 4 | F61: 96 | G61: 57 | H61: 153 | I61: 1 | J61: 3 | K61: 94 | L61: 45 | M61: 139 | N61: 5 | O61: 1 | P61: 93 | Q61: 45 | R61: 138 | S61: 0 | T61: 2 | U61: 91 | V61: 26 | W61: 117 | X61: 5 | Y61: 374 | Z61: 173 | AA61: 547 | AB61: 11
A62: 61 | B62: 45822 | C62: Přeučil Jiří | D62: Vršovice | E62: 4 | F62: 107 | G62: 45 | H62: 152 | I62: 0 | J62: 3 | K62: 92 | L62: 42 | M62: 134 | N62: 2 | O62: 1 | P62: 90 | Q62: 36 | R62: 126 | S62: 3 | T62: 2 | U62: 88 | V62: 47 | W62: 135 | X62: 2 | Y62: 377 | Z62: 170 | AA62: 547 | AB62: 7
A63: 62 | B63: 45830 | C63: Málek Josef | D63: Sokol UL | E63: 1 | F63: 91 | G63: 45 | H63: 136 | I63: 1 | J63: 2 | K63: 79 | L63: 54 | M63: 133 | N63: 0 | O63: 4 | P63: 92 | Q63: 48 | R63: 140 | S63: 0 | T63: 3 | U63: 92 | V63: 45 | W63: 137 | X63: 1 | Y63: 354 | Z63: 192 | AA63: 546 | AB63: 2
A64: 63 | B64: 45822 | C64: Hlaváč Václav | D64: K.Vary | E64: 1 | F64: 96 | G64: 35 | H64: 131 | I64: 5 | J64: 2 | K64: 91 | L64: 35 | M64: 126 | N64: 2 | O64: 4 | P64: 90 | Q64: 45 | R64: 135 | S64: 3 | T64: 3 | U64: 109 | V64: 45 | W64: 154 | X64: 2 | Y64: 386 | Z64: 160 | AA64: 546 | AB64: 12
A65: 64 | B65: 45822 | C65: Machulka Radek | D65: Rudná | E65: 2 | F65: 96 | G65: 26 | H65: 122 | I65: 5 | J65: 1 | K65: 90 | L65: 45 | M65: 135 | N65: 0 | O65: 3 | P65: 93 | Q65: 51 | R65: 144 | S65: 2 | T65: 4 | U65: 93 | V65: 51 | W65: 144 | X65: 2 | Y65: 372 | Z65: 173 | AA65: 545 | AB65: 9
A66: 65 | B66: 45823 | C66: Loukotka Václav | D66: Slavoj Plzeň | E66: 4 | F66: 93 | G66: =H66-F66 -> 27 | H66: 120 | I66: 2 | J66: 3 | K66: 93 | L66: =M66-K66 -> 54 | M66: 147 | N66: 0 | O66: 1 | P66: 94 | Q66: =R66-P66 -> 36 | R66: 130 | S66: 1 | T66: 2 | U66: 100 | V66: =W66-U66 -> 48 | W66: 148 | X66: 1 | Y66: =SUM(F66,K66,P66,U66) -> 380 | Z66: =SUM(G66,L66,Q66,V66) -> 165 | AA66: =SUM(H66,M66,R66,W66) -> 545 | AB66: =SUM(I66,N66,S66,X66) -> 4
A67: 66 | B67: 45822 | C67: Beran Karel | D67: Č.Kamenice | E67: 3 | F67: 94 | G67: 35 | H67: 129 | I67: 0 | J67: 4 | K67: 91 | L67: 53 | M67: 144 | N67: 1 | O67: 2 | P67: 100 | Q67: 45 | R67: 145 | S67: 1 | T67: 1 | U67: 81 | V67: 45 | W67: 126 | X67: 3 | Y67: 366 | Z67: 178 | AA67: 544 | AB67: 5
A68: 67 | B68: 45829 | C68: Oeschägel Jörg | D68: SV Budweiser | E68: 1 | F68: 99 | G68: 36 | H68: 135 | I68: 4 | J68: 2 | K68: 89 | L68: 44 | M68: 133 | N68: 2 | O68: 4 | P68: 87 | Q68: 35 | R68: 122 | S68: 4 | T68: 3 | U68: 100 | V68: 54 | W68: 154 | X68: 0 | Y68: 375 | Z68: 169 | AA68: 544 | AB68: 10
A69: 68 | B69: 45824 | C69: Wedlich Mirolsav | D69: Loko UL | E69: 4 | F69: 99 | G69: 34 | H69: 133 | I69: 2 | J69: 3 | K69: 95 | L69: 35 | M69: 130 | N69: 0 | O69: 1 | P69: 108 | Q69: 39 | R69: 147 | S69: 2 | T69: 2 | U69: 91 | V69: 43 | W69: 134 | X69: 3 | Y69: 393 | Z69: 151 | AA69: 544 | AB69: 7
A70: 69 | B70: 45821 | C70: Sekyra Vít | D70: Loko UL | E70: 3 | F70: 100 | G70: 41 | H70: 141 | I70: 3 | J70: 4 | K70: 96 | L70: 43 | M70: 139 | N70: 1 | O70: 2 | P70: 100 | Q70: 36 | R70: 136 | S70: 2 | T70: 1 | U70: 99 | V70: 29 | W70: 128 | X70: 2 | Y70: 395 | Z70: 149 | AA70: 544 | AB70: 8
A71: 70 | B71: 45830 | C71: Kasal Pavel | D71: Rudná | E71: 1 | F71: 107 | G71: 45 | H71: 152 | I71: 3 | J71: 2 | K71: 86 | L71: 41 | M71: 127 | N71: 1 | O71: 4 | P71: 95 | Q71: 36 | R71: 131 | S71: 3 | T71: 3 | U71: 98 | V71: 35 | W71: 133 | X71: 1 | Y71: 386 | Z71: 157 | AA71: 543 | AB71: 8
A72: 71 | B72: 45829 | C72: Bloß Peter | D72: CV Budweiser | E72: 3 | F72: 89 | G72: 45 | H72: 134 | I72: 0 | J72: 4 | K72: 99 | L72: 36 | M72: 135 | N72: 1 | O72: 2 | P72: 108 | Q72: 35 | R72: 143 | S72: 0 | T72: 1 | U72: 90 | V72: 41 | W72: 131 | X72: 1 | Y72: 386 | Z72: 157 | AA72: 543 | AB72: 2
A73: 72 | B73: 45826 | C73: Grejtovský Milan | D73: Loko UL | E73: 4 | F73: 105 | G73: 33 | H73: 138 | I73: 2 | J73: 3 | K73: 81 | L73: 35 | M73: 116 | N73: 2 | O73: 1 | P73: 103 | Q73: 45 | R73: 148 | S73: 1 | T73: 2 | U73: 98 | V73: 43 | W73: 141 | X73: 1 | Y73: 387 | Z73: 156 | AA73: 543 | AB73: 6
A74: 73 | B74: 45824 | C74: Koubek Michal | D74: Trnovany | E74: 1 | F74: 80 | G74: 44 | H74: 124 | I74: 0 | J74: 2 | K74: 92 | L74: 36 | M74: 128 | N74: 1 | O74: 4 | P74: 96 | Q74: 53 | R74: 149 | S74: 0 | T74: 3 | U74: 98 | V74: 43 | W74: 141 | X74: 1 | Y74: 366 | Z74: 176 | AA74: 542 | AB74: 2
A75: 74 | B75: 45830 | C75: Staněk Petr | D75: Sokol UL | E75: 3 | F75: 96 | G75: 54 | H75: 150 | I75: 2 | J75: 4 | K75: 87 | L75: 44 | M75: 131 | N75: 1 | O75: 2 | P75: 92 | Q75: 45 | R75: 137 | S75: 2 | T75: 1 | U75: 86 | V75: 36 | W75: 122 | X75: 3 | Y75: 361 | Z75: 179 | AA75: 540 | AB75: 8
A76: 75 | B76: 45829 | C76: Novák Miroslav | D76: Rokycany | E76: 2 | F76: 94 | G76: 34 | H76: 128 | I76: 1 | J76: 1 | K76: 93 | L76: 45 | M76: 138 | N76: 2 | O76: 3 | P76: 98 | Q76: 36 | R76: 134 | S76: 5 | T76: 4 | U76: 85 | V76: 53 | W76: 138 | X76: 3 | Y76: 370 | Z76: 168 | AA76: 538 | AB76: 11
A77: 76 | B77: 45823 | C77: Pešek Jan | D77: Slavoj Plzeň | E77: 2 | F77: 93 | G77: 45 | H77: 138 | I77: 2 | J77: 1 | K77: 93 | L77: 36 | M77: 129 | N77: 1 | O77: 3 | P77: 99 | Q77: 53 | R77: 152 | S77: 1 | T77: 4 | U77: 90 | V77: 27 | W77: 117 | X77: 2 | Y77: 375 | Z77: 161 | AA77: 536 | AB77: 6
A78: 77 | B78: 45828 | C78: Zuzánek Jaroslav | D78: Zwiessel | E78: 2 | F78: 90 | G78: 45 | H78: 135 | I78: 0 | J78: 1 | K78: 99 | L78: 45 | M78: 144 | N78: 1 | O78: 3 | P78: 96 | Q78: 43 | R78: 139 | S78: 0 | T78: 4 | U78: 90 | V78: 27 | W78: 117 | X78: 4 | Y78: 375 | Z78: 160 | AA78: 535 | AB78: 5
A79: 78 | B79: 45821 | C79: Slavík Roman | D79: Kovo DC | E79: 2 | F79: 87 | G79: 51 | H79: 138 | I79: 0 | J79: 1 | K79: 87 | L79: 51 | M79: 138 | N79: 0 | O79: 3 | P79: 81 | Q79: 45 | R79: 126 | S79: 2 | T79: 4 | U79: 96 | V79: 35 | W79: 131 | X79: 1 | Y79: 351 | Z79: 182 | AA79: 533 | AB79: 3
A80: 79 | B80: 45830 | C80: Nováček Pavel | D80: Sokol UL | E80: 3 | F80: 83 | G80: 44 | H80: 127 | I80: 3 | J80: 4 | K80: 88 | L80: 53 | M80: 141 | N80: 3 | O80: 2 | P80: 85 | Q80: 40 | R80: 125 | S80: 5 | T80: 1 | U80: 109 | V80: 31 | W80: 140 | X80: 1 | Y80: 365 | Z80: 168 | AA80: 533 | AB80: 12
A81: 80 | B81: 45822 | C81: Hlaváč David | D81: K.Vary | E81: 3 | F81: 102 | G81: 54 | H81: 156 | I81: 3 | J81: 4 | K81: 81 | L81: 44 | M81: 125 | N81: 0 | O81: 2 | P81: 93 | Q81: 35 | R81: 128 | S81: 0 | T81: 1 | U81: 82 | V81: 41 | W81: 123 | X81: 4 | Y81: 358 | Z81: 174 | AA81: 532 | AB81: 7
A82: 81 | B82: 45829 | C82: Zuzánek Jaroslav | D82: Zwiessel | E82: 3 | F82: 105 | G82: 57 | H82: 162 | I82: 2 | J82: 4 | K82: 86 | L82: 43 | M82: 129 | N82: 1 | O82: 2 | P82: 83 | Q82: 35 | R82: 118 | S82: 4 | T82: 1 | U82: 91 | V82: 31 | W82: 122 | X82: 2 | Y82: 365 | Z82: 166 | AA82: 531 | AB82: 9
A83: 82 | B83: 45829 | C83: Ditz Matěj | D83: Rokytnice | E83: 2 | F83: 89 | G83: 53 | H83: 142 | I83: 2 | J83: 1 | K83: 84 | L83: 25 | M83: 109 | N83: 5 | O83: 3 | P83: 102 | Q83: 45 | R83: 147 | S83: 1 | T83: 4 | U83: 85 | V83: 45 | W83: 130 | X83: 0 | Y83: 360 | Z83: 168 | AA83: 528 | AB83: 8
A84: 83 | B84: 45830 | C84: Málek Petr | D84: Sokol UL | E84: 4 | F84: 74 | G84: 35 | H84: 109 | I84: 0 | J84: 3 | K84: 96 | L84: 45 | M84: 141 | N84: 1 | O84: 1 | P84: 111 | Q84: 26 | R84: 137 | S84: 3 | T84: 2 | U84: 97 | V84: 44 | W84: 141 | X84: 1 | Y84: 378 | Z84: 150 | AA84: 528 | AB84: 5
A85: 84 | B85: 45823 | C85: Kříž Jan | D85: Slavoj Plzeň | E85: 1 | F85: 88 | G85: 42 | H85: 130 | I85: 2 | J85: 2 | K85: 95 | L85: 54 | M85: 149 | N85: 0 | O85: 4 | P85: 86 | Q85: 41 | R85: 127 | S85: 0 | T85: 3 | U85: 83 | V85: 36 | W85: 119 | X85: 1 | Y85: 352 | Z85: 173 | AA85: 525 | AB85: 3
A86: 85 | B86: 45830 | C86: Jahoda Ladislav | D86: Sokol UL | E86: 2 | F86: 98 | G86: 25 | H86: 123 | I86: 7 | J86: 1 | K86: 79 | L86: 45 | M86: 124 | N86: 2 | O86: 3 | P86: 93 | Q86: 53 | R86: 146 | S86: 0 | T86: 4 | U86: 88 | V86: 44 | W86: 132 | X86: 2 | Y86: 358 | Z86: 167 | AA86: 525 | AB86: 11
A87: 86 | B87: 45828 | C87: Fenzl Karl | D87: Zwiessel | E87: 2 | F87: 105 | G87: 54 | H87: 159 | I87: 0 | J87: 1 | K87: 87 | L87: 34 | M87: 121 | N87: 4 | O87: 3 | P87: 87 | Q87: 27 | R87: 114 | S87: 3 | T87: 4 | U87: 86 | V87: 44 | W87: 130 | X87: 3 | Y87: 365 | Z87: 159 | AA87: 524 | AB87: 10
A88: 87 | B88: 45824 | C88: Ondráček Jaroslav | D88: Bohušovice | E88: 3 | F88: 91 | G88: 34 | H88: 125 | I88: 3 | J88: 4 | K88: 94 | L88: 43 | M88: 137 | N88: 1 | O88: 2 | P88: 95 | Q88: 26 | R88: 121 | S88: 6 | T88: 1 | U88: 98 | V88: 43 | W88: 141 | X88: 1 | Y88: 378 | Z88: 146 | AA88: 524 | AB88: 11
A89: 88 | B89: 45829 | C89: Wengler Dieter | D89: Zwiessel | E89: 2 | F89: 93 | G89: 36 | H89: 129 | I89: 2 | J89: 1 | K89: 98 | L89: 75 | M89: 173 | N89: 0 | O89: 3 | P89: 83 | Q89: 27 | R89: 110 | S89: 6 | T89: 4 | U89: 75 | V89: 36 | W89: 111 | X89: 4 | Y89: 349 | Z89: 174 | AA89: 523 | AB89: 12
A90: 89 | B90: 45829 | C90: Maroe Dennis | D90: SV Diggli | E90: 4 | F90: 92 | G90: 35 | H90: 127 | I90: 4 | J90: 3 | K90: 99 | L90: 35 | M90: 134 | N90: 3 | O90: 1 | P90: 83 | Q90: 35 | R90: 118 | S90: 4 | T90: 2 | U90: 92 | V90: 52 | W90: 144 | X90: 3 | Y90: 366 | Z90: 157 | AA90: 523 | AB90: 14
A91: 90 | B91: 45830 | C91: Kasal Pavel | D91: Rudná | E91: 2 | F91: 99 | G91: 35 | H91: 134 | I91: 3 | J91: 1 | K91: 99 | L91: 42 | M91: 141 | N91: 3 | O91: 3 | P91: 94 | Q91: 34 | R91: 128 | S91: 1 | T91: 4 | U91: 88 | V91: 32 | W91: 120 | X91: 2 | Y91: 380 | Z91: 143 | AA91: 523 | AB91: 9
A92: 91 | B92: 45829 | C92: Torsten Ulrich | D92: SV Süßkirsch | E92: 4 | F92: 94 | G92: 39 | H92: 133 | I92: 2 | J92: 3 | K92: 95 | L92: 34 | M92: 129 | N92: 2 | O92: 1 | P92: 92 | Q92: 52 | R92: 144 | S92: 2 | T92: 2 | U92: 82 | V92: 34 | W92: 116 | X92: 4 | Y92: 363 | Z92: 159 | AA92: 522 | AB92: 10
A93: 92 | B93: 45828 | C93: Wengler Dieter | D93: Zwiessel | E93: 4 | F93: 91 | G93: 33 | H93: 124 | I93: 4 | J93: 3 | K93: 86 | L93: 45 | M93: 131 | N93: 1 | O93: 1 | P93: 88 | Q93: 52 | R93: 140 | S93: 2 | T93: 2 | U93: 83 | V93: 43 | W93: 126 | X93: 2 | Y93: 348 | Z93: 173 | AA93: 521 | AB93: 9
A94: 93 | B94: 45825 | C94: Heisig Rudolf | D94: Rýmařov | E94: 1 | F94: 86 | G94: 45 | H94: 131 | I94: 1 | J94: 2 | K94: 100 | L94: 34 | M94: 134 | N94: 1 | O94: 4 | P94: 92 | Q94: 35 | R94: 127 | S94: 3 | T94: 3 | U94: 84 | V94: 45 | W94: 129 | X94: 2 | Y94: 362 | Z94: 159 | AA94: 521 | AB94: 7
A95: 94 | B95: 45822 | C95: Šmelhaus Petr | D95: Č.Kamenice | E95: 1 | F95: 83 | G95: 39 | H95: 122 | I95: 2 | J95: 2 | K95: 89 | L95: 45 | M95: 134 | N95: 4 | O95: 4 | P95: 91 | Q95: 35 | R95: 126 | S95: 1 | T95: 3 | U95: 94 | V95: 44 | W95: 138 | X95: 2 | Y95: 357 | Z95: 163 | AA95: 520 | AB95: 9
A96: 95 | B96: 45826 | C96: Wedlich Miroslav | D96: Loko UL | E96: 2 | F96: 86 | G96: 35 | H96: 121 | I96: 2 | J96: 1 | K96: 95 | L96: 44 | M96: 139 | N96: 2 | O96: 3 | P96: 84 | Q96: 35 | R96: 119 | S96: 1 | T96: 4 | U96: 98 | V96: 43 | W96: 141 | X96: 3 | Y96: 363 | Z96: 157 | AA96: 520 | AB96: 8
A97: 96 | B97: 45829 | C97: Potůček Miroslav | D97: Zwiessel | E97: 3 | F97: 88 | G97: 44 | H97: 132 | I97: 4 | J97: 4 | K97: 85 | L97: 43 | M97: 128 | N97: 1 | O97: 2 | P97: 94 | Q97: 33 | R97: 127 | S97: 3 | T97: 1 | U97: 96 | V97: 36 | W97: 132 | X97: 1 | Y97: 363 | Z97: 156 | AA97: 519 | AB97: 9
A98: 97 | B98: 45829 | C98: Wengler Dieter | D98: Zwiessel | E98: 1 | F98: 93 | G98: =H98-F98 -> 27 | H98: 120 | I98: 3 | J98: 2 | K98: 105 | L98: =M98-K98 -> 25 | M98: 130 | N98: 8 | O98: 4 | P98: 85 | Q98: =R98-P98 -> 26 | R98: 111 | S98: 4 | T98: 3 | U98: 107 | V98: =W98-U98 -> 51 | W98: 158 | X98: 0 | Y98: =SUM(F98,K98,P98,U98) -> 390 | Z98: =SUM(G98,L98,Q98,V98) -> 129 | AA98: =SUM(H98,M98,R98,W98) -> 519 | AB98: =SUM(I98,N98,S98,X98) -> 15
A99: 98 | B99: 45824 | C99: Ledwoň Martin | D99: Verneřice | E99: 1 | F99: 111 | G99: 17 | H99: 128 | I99: 6 | J99: 2 | K99: 90 | L99: 36 | M99: 126 | N99: 2 | O99: 4 | P99: 86 | Q99: 35 | R99: 121 | S99: 5 | T99: 3 | U99: 92 | V99: 51 | W99: 143 | X99: 2 | Y99: 379 | Z99: 139 | AA99: 518 | AB99: 15
A100: 99 | B100: 45830 | C100: Pavlík Samuel | D100: K.Vary | E100: 2 | F100: 82 | G100: 43 | H100: 125 | I100: 3 | J100: 1 | K100: 85 | L100: 40 | M100: 125 | N100: 1 | O100: 3 | P100: 88 | Q100: 51 | R100: 139 | S100: 1 | T100: 4 | U100: 93 | V100: 34 | W100: 127 | X100: 2 | Y100: 348 | Z100: 168 | AA100: 516 | AB100: 7
A101: 100 | B101: 45824 | C101: Šípek Jiří | D101: Loko UL | E101: 2 | F101: 83 | G101: 43 | H101: 126 | I101: 0 | J101: 1 | K101: 89 | L101: 36 | M101: 125 | N101: 2 | O101: 3 | P101: 92 | Q101: 36 | R101: 128 | S101: 2 | T101: 4 | U101: 94 | V101: 43 | W101: 137 | X101: 1 | Y101: 358 | Z101: 158 | AA101: 516 | AB101: 5
A102: 101 | B102: 45829 | C102: Hanout Pavel | D102: Rokytnice | E102: 2 | F102: 78 | G102: 45 | H102: 123 | I102: 2 | J102: 1 | K102: 89 | L102: 26 | M102: 115 | N102: 4 | O102: 3 | P102: 98 | Q102: 35 | R102: 133 | S102: 2 | T102: 4 | U102: 94 | V102: 51 | W102: 145 | X102: 1 | Y102: 359 | Z102: 157 | AA102: 516 | AB102: 9
A103: 102 | B103: 45825 | C103: Wedlich Miroslav | D103: Loko UL | E103: 4 | F103: 91 | G103: 43 | H103: 134 | I103: 1 | J103: 3 | K103: 100 | L103: 41 | M103: 141 | N103: 2 | O103: 1 | P103: 80 | Q103: 35 | R103: 115 | S103: 2 | T103: 2 | U103: 91 | V103: 35 | W103: 126 | X103: 2 | Y103: 362 | Z103: 154 | AA103: 516 | AB103: 7
A104: 103 | B104: 45830 | C104: Lesák Adam | D104: Rudná | E104: 4 | F104: 84 | G104: 44 | H104: 128 | I104: 1 | J104: 3 | K104: 102 | L104: 44 | M104: 146 | N104: 1 | O104: 1 | P104: 75 | Q104: 36 | R104: 111 | S104: 1 | T104: 2 | U104: 92 | V104: 35 | W104: 127 | X104: 4 | Y104: 353 | Z104: 159 | AA104: 512 | AB104: 7
A105: 104 | B105: 45823 | C105: Ambra Jan | D105: Žatec | E105: 4 | F105: 76 | G105: 47 | H105: 123 | I105: 0 | J105: 3 | K105: 98 | L105: 34 | M105: 132 | N105: 1 | O105: 1 | P105: 97 | Q105: 36 | R105: 133 | S105: 2 | T105: 2 | U105: 89 | V105: 34 | W105: 123 | X105: 3 | Y105: 360 | Z105: 151 | AA105: 511 | AB105: 6
A106: 105 | B106: 45829 | C106: Janoušek Miloš | D106: Rokytnice | E106: 3 | F106: 83 | G106: 36 | H106: 119 | I106: 4 | J106: 4 | K106: 89 | L106: 26 | M106: 115 | N106: 6 | O106: 2 | P106: 87 | Q106: 54 | R106: 141 | S106: 0 | T106: 1 | U106: 101 | V106: 35 | W106: 136 | X106: 2 | Y106: 360 | Z106: 151 | AA106: 511 | AB106: 12
A107: 106 | B107: 45829 | C107: Hanout Filip | D107: Rokytnice | E107: 4 | F107: 81 | G107: 27 | H107: 108 | I107: 6 | J107: 3 | K107: 82 | L107: 52 | M107: 134 | N107: 0 | O107: 1 | P107: 88 | Q107: 43 | R107: 131 | S107: 3 | T107: 2 | U107: 86 | V107: 51 | W107: 137 | X107: 0 | Y107: 337 | Z107: 173 | AA107: 510 | AB107: 9
A108: 107 | B108: 45827 | C108: Zítka Lukáš | D108: Verneřice | E108: 2 | F108: 77 | G108: 25 | H108: 102 | I108: 4 | J108: 1 | K108: 96 | L108: 36 | M108: 132 | N108: 2 | O108: 3 | P108: 99 | Q108: 35 | R108: 134 | S108: 4 | T108: 4 | U108: 96 | V108: 44 | W108: 140 | X108: 2 | Y108: 368 | Z108: 140 | AA108: 508 | AB108: 12
A109: 108 | B109: 45829 | C109: Fischer Max | D109: Zwiessel | E109: 1 | F109: 93 | G109: 41 | H109: 134 | I109: 1 | J109: 2 | K109: 67 | L109: 26 | M109: 93 | N109: 4 | O109: 4 | P109: 100 | Q109: 35 | R109: 135 | S109: 3 | T109: 3 | U109: 92 | V109: 53 | W109: 145 | X109: 0 | Y109: 352 | Z109: 155 | AA109: 507 | AB109: 8
A110: 109 | B110: 45829 | C110: Fischer Max | D110: Zwiessel | E110: 1 | F110: 93 | G110: 41 | H110: 134 | I110: 1 | J110: 2 | K110: 92 | L110: 27 | M110: 119 | N110: 2 | O110: 4 | P110: 94 | Q110: 43 | R110: 137 | S110: 2 | T110: 3 | U110: 82 | V110: 35 | W110: 117 | X110: 5 | Y110: 361 | Z110: 146 | AA110: 507 | AB110: 10
A111: 110 | B111: 45826 | C111: Bek Tomáš | D111: V.Popovice | E111: 1 | F111: 89 | G111: 26 | H111: 115 | I111: 3 | J111: 2 | K111: 94 | L111: 25 | M111: 119 | N111: 4 | O111: 4 | P111: 87 | Q111: 39 | R111: 126 | S111: 4 | T111: 3 | U111: 96 | V111: 51 | W111: 147 | X111: 4 | Y111: 366 | Z111: 141 | AA111: 507 | AB111: 15
A112: 111 | B112: 45828 | C112: Wengler Dieter | D112: Zwiessel | E112: 4 | F112: 85 | G112: 25 | H112: 110 | I112: 3 | J112: 3 | K112: 96 | L112: 44 | M112: 140 | N112: 2 | O112: 1 | P112: 86 | Q112: 38 | R112: 124 | S112: 4 | T112: 2 | U112: 86 | V112: 44 | W112: 130 | X112: 2 | Y112: 353 | Z112: 151 | AA112: 504 | AB112: 11
A113: 112 | B113: 45827 | C113: Mach Radek | D113: Verneřice | E113: 1 | F113: 84 | G113: 41 | H113: 125 | I113: 0 | J113: 2 | K113: 88 | L113: 35 | M113: 123 | N113: 4 | O113: 4 | P113: 79 | Q113: 36 | R113: 115 | S113: 2 | T113: 3 | U113: 103 | V113: 36 | W113: 139 | X113: 2 | Y113: 354 | Z113: 148 | AA113: 502 | AB113: 8
A114: 113 | B114: 45824 | C114: Zalabák Petr | D114: Lovosice | E114: 4 | F114: 80 | G114: 33 | H114: 113 | I114: 4 | J114: 3 | K114: 98 | L114: 36 | M114: 134 | N114: 2 | O114: 1 | P114: 100 | Q114: 43 | R114: 143 | S114: 2 | T114: 2 | U114: 86 | V114: 26 | W114: 112 | X114: 2 | Y114: 364 | Z114: 138 | AA114: 502 | AB114: 10
A115: 114 | B115: 45824 | C115: Woš Jiří | D115: Bohušovice | E115: 1 | F115: 91 | G115: 51 | H115: 142 | I115: 1 | J115: 2 | K115: 77 | L115: 26 | M115: 103 | N115: 4 | O115: 4 | P115: 91 | Q115: 40 | R115: 131 | S115: 5 | T115: 3 | U115: 92 | V115: 32 | W115: 124 | X115: 3 | Y115: 351 | Z115: 149 | AA115: 500 | AB115: 13
A116: 115 | B116: 45826 | C116: Čecho Martin | D116: Bílina | E116: 3 | F116: 90 | G116: 27 | H116: 117 | I116: 3 | J116: 4 | K116: 98 | L116: 25 | M116: 123 | N116: 5 | O116: 2 | P116: 101 | Q116: 33 | R116: 134 | S116: 2 | T116: 1 | U116: 95 | V116: 31 | W116: 126 | X116: 2 | Y116: 384 | Z116: 116 | AA116: 500 | AB116: 12
A117: 116 | B117: 45821 | C117: Fišer Tomáš | D117: Verneřice | E117: 2 | F117: 90 | G117: 35 | H117: 125 | I117: 5 | J117: 1 | K117: 83 | L117: 31 | M117: 114 | N117: 3 | O117: 3 | P117: 86 | Q117: 34 | R117: 120 | S117: 3 | T117: 4 | U117: 88 | V117: 52 | W117: 140 | X117: 2 | Y117: 347 | Z117: 152 | AA117: 499 | AB117: 13
A118: 117 | B118: 45823 | C118: Kašpar Jiří | D118: Admira | E118: 3 | F118: 85 | G118: 36 | H118: 121 | I118: 2 | J118: 4 | K118: 86 | L118: 59 | M118: 145 | N118: 1 | O118: 2 | P118: 74 | Q118: 43 | R118: 117 | S118: 3 | T118: 1 | U118: 83 | V118: 32 | W118: 115 | X118: 3 | Y118: 328 | Z118: 170 | AA118: 498 | AB118: 9
A119: 118 | B119: 45828 | C119: Fischer Max | D119: Zwiessel | E119: 3 | F119: 97 | G119: 53 | H119: 150 | I119: 2 | J119: 4 | K119: 87 | L119: 30 | M119: 117 | N119: 5 | O119: 2 | P119: 84 | Q119: 31 | R119: 115 | S119: 3 | T119: 1 | U119: 84 | V119: 32 | W119: 116 | X119: 4 | Y119: 352 | Z119: 146 | AA119: 498 | AB119: 14
A120: 119 | B120: 45824 | C120: Ondráček Jaroslav | D120: Bohušovice | E120: 3 | F120: 86 | G120: 32 | H120: 118 | I120: 2 | J120: 4 | K120: 94 | L120: 45 | M120: 139 | N120: 1 | O120: 2 | P120: 91 | Q120: 27 | R120: 118 | S120: 5 | T120: 1 | U120: 88 | V120: 34 | W120: 122 | X120: 4 | Y120: 359 | Z120: 138 | AA120: 497 | AB120: 12
A121: 120 | B121: 45825 | C121: Semelka Jiří | D121: Duchcov | E121: 4 | F121: 86 | G121: 14 | H121: 100 | I121: 5 | J121: 3 | K121: 103 | L121: 41 | M121: 144 | N121: 2 | O121: 1 | P121: 90 | Q121: 45 | R121: 135 | S121: 2 | T121: 2 | U121: 89 | V121: 27 | W121: 116 | X121: 2 | Y121: 368 | Z121: 127 | AA121: 495 | AB121: 11
A122: 121 | B122: 45822 | C122: Vorlický Jaroslav | D122: Loko UL | E122: 2 | F122: 84 | G122: 43 | H122: 127 | I122: 2 | J122: 1 | K122: 75 | L122: 34 | M122: 109 | N122: 4 | O122: 3 | P122: 82 | Q122: 52 | R122: 134 | S122: 1 | T122: 4 | U122: 97 | V122: 27 | W122: 124 | X122: 4 | Y122: 338 | Z122: 156 | AA122: 494 | AB122: 11
A123: 122 | B123: 45829 | C123: Gneist Toni | D123: SV Rot Kreuz | E123: 3 | F123: 94 | G123: 36 | H123: 130 | I123: 2 | J123: 4 | K123: 69 | L123: 35 | M123: 104 | N123: 3 | O123: 2 | P123: 93 | Q123: 18 | R123: 111 | S123: 7 | T123: 1 | U123: 104 | V123: 44 | W123: 148 | X123: 4 | Y123: 360 | Z123: 133 | AA123: 493 | AB123: 16
A124: 123 | B124: 45829 | C124: Jalovecký Radek | D124: Loko UL | E124: 2 | F124: 91 | G124: 36 | H124: 127 | I124: 4 | J124: 1 | K124: 72 | L124: 52 | M124: 124 | N124: 2 | O124: 3 | P124: 83 | Q124: 35 | R124: 118 | S124: 3 | T124: 4 | U124: 94 | V124: 26 | W124: 120 | X124: 5 | Y124: 340 | Z124: 149 | AA124: 489 | AB124: 14
A125: 124 | B125: 45830 | C125: Kýhos Miroslav | D125: Rudná | E125: 1 | F125: 96 | G125: 29 | H125: 125 | I125: 3 | J125: 2 | K125: 93 | L125: 34 | M125: 127 | N125: 3 | O125: 4 | P125: 85 | Q125: 27 | R125: 112 | S125: 6 | T125: 3 | U125: 102 | V125: 23 | W125: 125 | X125: 6 | Y125: 376 | Z125: 113 | AA125: 489 | AB125: 18
A126: 125 | B126: 45828 | C126: Fenzl Karl | D126: Zwiessel | E126: 1 | F126: 89 | G126: 27 | H126: 116 | I126: 4 | J126: 2 | K126: 91 | L126: 44 | M126: 135 | N126: 1 | O126: 4 | P126: 79 | Q126: 36 | R126: 115 | S126: 2 | T126: 3 | U126: 69 | V126: 53 | W126: 122 | X126: 1 | Y126: 328 | Z126: 160 | AA126: 488 | AB126: 8
A127: 126 | B127: 45824 | C127: Bruthans Michal | D127: Lovosice | E127: 2 | F127: 81 | G127: 26 | H127: 107 | I127: 6 | J127: 1 | K127: 87 | L127: 35 | M127: 122 | N127: 4 | O127: 3 | P127: 92 | Q127: 42 | R127: 134 | S127: 2 | T127: 4 | U127: 80 | V127: 44 | W127: 124 | X127: 3 | Y127: 340 | Z127: 147 | AA127: 487 | AB127: 15
A128: 127 | B128: 45821 | C128: Ramajzl Zdenek | D128: Loko UL | E128: 4 | F128: 90 | G128: 23 | H128: 113 | I128: 2 | J128: 3 | K128: 85 | L128: 53 | M128: 138 | N128: 2 | O128: 1 | P128: 91 | Q128: 25 | R128: 116 | S128: 3 | T128: 2 | U128: 74 | V128: 43 | W128: 117 | X128: 4 | Y128: 340 | Z128: 144 | AA128: 484 | AB128: 11
A129: 128 | B129: 45827 | C129: Ramajzl Zdenek | D129: Loko UL | E129: 2 | F129: 91 | G129: 44 | H129: 135 | I129: 3 | J129: 1 | K129: 86 | L129: 27 | M129: 113 | N129: 5 | O129: 3 | P129: 96 | Q129: 34 | R129: 130 | S129: 4 | T129: 3 | U129: 78 | V129: 27 | W129: 105 | X129: 6 | Y129: 351 | Z129: 132 | AA129: 483 | AB129: 18
A130: 129 | B130: 45830 | C130: Wolf Jindřich | D130: Sokol UL | E130: 4 | F130: 78 | G130: =H130-F130 -> 33 | H130: 111 | I130: 3 | J130: 3 | K130: 91 | L130: =M130-K130 -> 53 | M130: 144 | N130: 1 | O130: 1 | P130: 81 | Q130: =R130-P130 -> 45 | R130: 126 | S130: 1 | T130: 2 | U130: 83 | V130: =W130-U130 -> 17 | W130: 100 | X130: 6 | Y130: =SUM(F130,K130,P130,U130) -> 333 | Z130: =SUM(G130,L130,Q130,V130) -> 148 | AA130: =SUM(H130,M130,R130,W130) -> 481 | AB130: =SUM(I130,N130,S130,X130) -> 11
A131: 130 | B131: 45821 | C131: Kalousek Petr | D131: Mikulášovice | E131: 3 | F131: 90 | G131: 34 | H131: 124 | I131: 0 | J131: 4 | K131: 93 | L131: 42 | M131: 135 | N131: 3 | O131: 2 | P131: 73 | Q131: 36 | R131: 109 | S131: 2 | T131: 1 | U131: 75 | V131: 36 | W131: 111 | X131: 5 | Y131: 331 | Z131: 148 | AA131: 479 | AB131: 10
A132: 131 | B132: 45823 | C132: Plšek Jiří | D132: Žatec | E132: 2 | F132: 83 | G132: 36 | H132: 119 | I132: 3 | J132: 1 | K132: 84 | L132: 27 | M132: 111 | N132: 7 | O132: 3 | P132: 83 | Q132: 43 | R132: 126 | S132: 4 | T132: 4 | U132: 92 | V132: 30 | W132: 122 | X132: 5 | Y132: 342 | Z132: 136 | AA132: 478 | AB132: 19
A133: 132 | B133: 45823 | C133: Musil Bohumír | D133: Konstruktiva | E133: 3 | F133: 79 | G133: 17 | H133: 96 | I133: 6 | J133: 4 | K133: 97 | L133: 36 | M133: 133 | N133: 2 | O133: 2 | P133: 72 | Q133: 60 | R133: 132 | S133: 1 | T133: 1 | U133: 80 | V133: 35 | W133: 115 | X133: 3 | Y133: 328 | Z133: 148 | AA133: 476 | AB133: 12
A134: 133 | B134: 45829 | C134: Zuzánek Jaroslav | D134: Zwiessel | E134: 2 | F134: 72 | G134: 36 | H134: 108 | I134: 3 | J134: 1 | K134: 81 | L134: 26 | M134: 107 | N134: 6 | O134: 3 | P134: 93 | Q134: 43 | R134: 136 | S134: 2 | T134: 4 | U134: 87 | V134: 36 | W134: 123 | X134: 3 | Y134: 333 | Z134: 141 | AA134: 474 | AB134: 14
A135: 134 | B135: 45823 | C135: Lébl Zbyněk | D135: Konstruktiva | E135: 4 | F135: 85 | G135: 35 | H135: 120 | I135: 5 | J135: 3 | K135: 88 | L135: 35 | M135: 123 | N135: 5 | O135: 1 | P135: 83 | Q135: 32 | R135: 115 | S135: 3 | T135: 2 | U135: 79 | V135: 36 | W135: 115 | X135: 1 | Y135: 335 | Z135: 138 | AA135: 473 | AB135: 14
A136: 135 | B136: 45823 | C136: Vondráček František | D136: Konstruktiva | E136: 2 | F136: 81 | G136: 33 | H136: 114 | I136: 5 | J136: 1 | K136: 79 | L136: 21 | M136: 100 | N136: 5 | O136: 3 | P136: 89 | Q136: 27 | R136: 116 | S136: 4 | T136: 4 | U136: 89 | V136: 35 | W136: 124 | X136: 5 | Y136: 338 | Z136: 116 | AA136: 454 | AB136: 19
A137: 136 | B137: 45830 | C137: Keller Tomáš | D137: Rudná | E137: 2 | F137: 84 | G137: 32 | H137: 116 | I137: 4 | J137: 1 | K137: 88 | L137: 36 | M137: 124 | N137: 5 | O137: 3 | P137: 80 | Q137: 18 | R137: 98 | S137: 4 | T137: 4 | U137: 78 | V137: 35 | W137: 113 | X137: 3 | Y137: 330 | Z137: 121 | AA137: 451 | AB137: 16
A138: 137 | B138: 45826 | C138: Svoboda Petr | D138: V.Popovice | E138: 3 | F138: 92 | G138: 27 | H138: 119 | I138: 4 | J138: 4 | K138: 83 | L138: 26 | M138: 109 | N138: 5 | O138: 2 | P138: 80 | Q138: 35 | R138: 115 | S138: 2 | T138: 1 | U138: 85 | V138: 18 | W138: 103 | X138: 6 | Y138: 340 | Z138: 106 | AA138: 446 | AB138: 17
A139: 138 | B139: 45822 | C139: Koščo Tadeáš | D139: Rudná | E139: 3 | F139: 85 | G139: 33 | H139: 118 | I139: 5 | J139: 4 | K139: 67 | L139: 24 | M139: 91 | N139: 5 | O139: 2 | P139: 69 | Q139: 34 | R139: 103 | S139: 5 | T139: 1 | U139: 98 | V139: 31 | W139: 129 | X139: 2 | Y139: 319 | Z139: 122 | AA139: 441 | AB139: 17
A140: 139 | B140: 45828 | C140: Fischer Max | D140: Zwiessel | E140: 3 | F140: 92 | G140: 35 | H140: 127 | I140: 5 | J140: 4 | K140: 71 | L140: 18 | M140: 89 | N140: 7 | O140: 2 | P140: 93 | Q140: 26 | R140: 119 | S140: 4 | T140: 1 | U140: 89 | V140: 17 | W140: 106 | X140: 7 | Y140: 345 | Z140: 96 | AA140: 441 | AB140: 23
A141: 140 | B141: 45822 | C141: Koščo Peter | D141: Rudná | E141: 4 | F141: 87 | G141: 27 | H141: 114 | I141: 4 | J141: 3 | K141: 68 | L141: 36 | M141: 104 | N141: 4 | O141: 1 | P141: 90 | Q141: 27 | R141: 117 | S141: 4 | T141: 2 | U141: 71 | V141: 23 | W141: 94 | X141: 5 | Y141: 316 | Z141: 113 | AA141: 429 | AB141: 17
A142: 141 | B142: 45830 | C142: Lesák Adrian | D142: Rudná | E142: 3 | F142: 58 | G142: 26 | H142: 84 | I142: 6 | J142: 4 | K142: 77 | L142: 17 | M142: 94 | N142: 8 | O142: 2 | P142: 60 | Q142: 22 | R142: 82 | S142: 6 | T142: 1 | U142: 63 | V142: 17 | W142: 80 | X142: 11 | Y142: 258 | Z142: 82 | AA142: 340 | AB142: 31
A143: 142 | B143: 45830 | C143: Pavlík Samuel | D143: K.Vary | E143: 4 | F143: 94 | G143: 18 | H143: 112 | I143: 6 | J143: 3 | K143: 74 | L143: 0 | M143: 74 | N143: 0 | O143: 2 | P143: 0 | Q143: 0 | R143: 0 | S143: 0 | T143: 1 | U143: 0 | V143: 0 | W143: 0 | X143: 0 | Y143: 168 | Z143: 18 | AA143: 186 | AB143: 6

Sheet ženy-jednotlivci
A1: Poř. | B1: Datum | C1: Jméno | D1: Oddíl | E1: dr. | F1: plné | G1: dor. | H1: celkem | I1: chyby | J1: dr. | K1: plné | L1: dor. | M1: celkem | N1: chyby | O1: dr. | P1: plné | Q1: dor. | R1: celkem | S1: chyby | T1: dr. | U1: plné | V1: dor. | W1: celkem | X1: chyby | Y1: plné | Z1: dor. | AA1: celkem | AB1: chyby
A2: 1 | B2: 45829 | C2: Nováková Lenka | D2: Rokycany | E2: 4 | F2: 101 | G2: =H2-F2 -> 54 | H2: 155 | I2: 2 | J2: 3 | K2: 86 | L2: =M2-K2 -> 48 | M2: 134 | N2: 0 | O2: 1 | P2: 95 | Q2: =R2-P2 -> 41 | R2: 136 | S2: 0 | T2: 2 | U2: 96 | V2: =W2-U2 -> 66 | W2: 162 | X2: 2 | Y2: =SUM(F2,K2,P2,U2) -> 378 | Z2: =SUM(G2,L2,Q2,V2) -> 209 | AA2: =SUM(H2,M2,R2,W2) -> 587 | AB2: =SUM(I2,N2,S2,X2) -> 4
A3: 2 | B3: 45830 | C3: Vorlická Kristýna | D3: Loko UL | E3: 1 | F3: 98 | G3: 51 | H3: 149 | I3: 0 | J3: 2 | K3: 97 | L3: 35 | M3: 132 | N3: 0 | O3: 4 | P3: 94 | Q3: 53 | R3: 147 | S3: 1 | T3: 3 | U3: 104 | V3: 49 | W3: 153 | X3: 0 | Y3: 393 | Z3: 188 | AA3: 581 | AB3: 1
A4: 3 | B4: 45827 | C4: Šuterová Nela | D4: Podbořany | E4: 4 | F4: 105 | G4: 60 | H4: 165 | I4: 2 | J4: 3 | K4: 103 | L4: 34 | M4: 137 | N4: 2 | O4: 1 | P4: 93 | Q4: 39 | R4: 132 | S4: 0 | T4: 2 | U4: 82 | V4: 53 | W4: 135 | X4: 2 | Y4: 383 | Z4: 186 | AA4: 569 | AB4: 6
A5: 4 | B5: 45828 | C5: Vorlická Kristýna | D5: Loko UL | E5: 1 | F5: 100 | G5: 53 | H5: 153 | I5: 0 | J5: 2 | K5: 90 | L5: 51 | M5: 141 | N5: 2 | O5: 4 | P5: 105 | Q5: 44 | R5: 149 | S5: 2 | T5: 3 | U5: 86 | V5: 36 | W5: 122 | X5: 0 | Y5: 381 | Z5: 184 | AA5: 565 | AB5: 4
A6: 5 | B6: 45828 | C6: Vohnoutová Šárka | D6: Loko UL | E6: 3 | F6: 93 | G6: 50 | H6: 143 | I6: 3 | J6: 4 | K6: 108 | L6: 43 | M6: 151 | N6: 0 | O6: 2 | P6: 90 | Q6: 42 | R6: 132 | S6: 0 | T6: 1 | U6: 92 | V6: 45 | W6: 137 | X6: 2 | Y6: 383 | Z6: 180 | AA6: 563 | AB6: 5
A7: 6 | B7: 45830 | C7: Vohnoutová Šárka | D7: Loko UL | E7: 2 | F7: 95 | G7: 43 | H7: 138 | I7: 1 | J7: 1 | K7: 87 | L7: 45 | M7: 132 | N7: 2 | O7: 3 | P7: 101 | Q7: 53 | R7: 154 | S7: 1 | T7: 4 | U7: 89 | V7: 45 | W7: 134 | X7: 2 | Y7: 372 | Z7: 186 | AA7: 558 | AB7: 6
A8: 7 | B8: 45830 | C8: Zimáková Jarmila | D8: Rudná | E8: 3 | F8: 80 | G8: 50 | H8: 130 | I8: 1 | J8: 4 | K8: 94 | L8: 45 | M8: 139 | N8: 1 | O8: 2 | P8: 97 | Q8: 54 | R8: 151 | S8: 2 | T8: 1 | U8: 89 | V8: 45 | W8: 134 | X8: 2 | Y8: 360 | Z8: 194 | AA8: 554 | AB8: 6
A9: 8 | B9: 45830 | C9: Vohnoutová Šárka | D9: Loko UL | E9: 1 | F9: 98 | G9: 52 | H9: 150 | I9: 1 | J9: 2 | K9: 95 | L9: 26 | M9: 121 | N9: 2 | O9: 4 | P9: 98 | Q9: 44 | R9: 142 | S9: 0 | T9: 3 | U9: 87 | V9: 53 | W9: 140 | X9: 1 | Y9: 378 | Z9: 175 | AA9: 553 | AB9: 4
A10: 9 | B10: 45830 | C10: Petráčková Olga | D10: Jablonec n.N. | E10: 3 | F10: 99 | G10: 35 | H10: 134 | I10: 4 | J10: 4 | K10: 90 | L10: 44 | M10: 134 | N10: 2 | O10: 2 | P10: 94 | Q10: 45 | R10: 139 | S10: 0 | T10: 1 | U10: 104 | V10: 42 | W10: 146 | X10: 0 | Y10: 387 | Z10: 166 | AA10: 553 | AB10: 6
A11: 10 | B11: 45827 | C11: Vohnoutová Šárka | D11: Loko UL | E11: 1 | F11: 94 | G11: 41 | H11: 135 | I11: 0 | J11: 2 | K11: 96 | L11: 35 | M11: 131 | N11: 1 | O11: 4 | P11: 97 | Q11: 48 | R11: 145 | S11: 1 | T11: 3 | U11: 88 | V11: 50 | W11: 138 | X11: 1 | Y11: 375 | Z11: 174 | AA11: 549 | AB11: 3
A12: 11 | B12: 45830 | C12: Ptáčková Iveta | D12: Žatec | E12: 3 | F12: 86 | G12: 52 | H12: 138 | I12: 1 | J12: 4 | K12: 105 | L12: 45 | M12: 150 | N12: 0 | O12: 2 | P12: 94 | Q12: 34 | R12: 128 | S12: 0 | T12: 1 | U12: 101 | V12: 32 | W12: 133 | X12: 6 | Y12: 386 | Z12: 163 | AA12: 549 | AB12: 7
A13: 12 | B13: 45828 | C13: Bořutová Marcela | D13: Loko UL | E13: 4 | F13: 90 | G13: 51 | H13: 141 | I13: 1 | J13: 3 | K13: 93 | L13: 56 | M13: 149 | N13: 1 | O13: 1 | P13: 90 | Q13: 44 | R13: 134 | S13: 1 | T13: 2 | U13: 88 | V13: 36 | W13: 124 | X13: 4 | Y13: 361 | Z13: 187 | AA13: 548 | AB13: 7
A14: 13 | B14: 45825 | C14: Vohnoutová Šárka | D14: Loko UL | E14: 2 | F14: 88 | G14: 63 | H14: 151 | I14: 1 | J14: 1 | K14: 93 | L14: 35 | M14: 128 | N14: 1 | O14: 3 | P14: 102 | Q14: 42 | R14: 144 | S14: 2 | T14: 4 | U14: 88 | V14: 36 | W14: 124 | X14: 5 | Y14: 371 | Z14: 176 | AA14: 547 | AB14: 9
A15: 14 | B15: 45827 | C15: Šuterová Michaela | D15: Kovářská | E15: 2 | F15: 94 | G15: 43 | H15: 137 | I15: 1 | J15: 1 | K15: 105 | L15: 53 | M15: 158 | N15: 0 | O15: 3 | P15: 100 | Q15: 40 | R15: 140 | S15: 2 | T15: 4 | U15: 78 | V15: 34 | W15: 112 | X15: 5 | Y15: 377 | Z15: 170 | AA15: 547 | AB15: 8
A16: 15 | B16: 45823 | C16: Sedláčková Irini | D16: Žižkov | E16: 1 | F16: 86 | G16: 51 | H16: 137 | I16: 0 | J16: 2 | K16: 93 | L16: 54 | M16: 147 | N16: 0 | O16: 4 | P16: 97 | Q16: 36 | R16: 133 | S16: 2 | T16: 3 | U16: 93 | V16: 35 | W16: 128 | X16: 4 | Y16: 369 | Z16: 176 | AA16: 545 | AB16: 6
A17: 16 | B17: 45825 | C17: Bořutová Marcela | D17: Loko UL | E17: 3 | F17: 96 | G17: 33 | H17: 129 | I17: 4 | J17: 4 | K17: 100 | L17: 44 | M17: 144 | N17: 0 | O17: 2 | P17: 92 | Q17: 36 | R17: 128 | S17: 2 | T17: 1 | U17: 100 | V17: 43 | W17: 143 | X17: 0 | Y17: 388 | Z17: 156 | AA17: 544 | AB17: 6
A18: 17 | B18: 45829 | C18: Wühr Ingrid | D18: Zwiessel | E18: 2 | F18: 89 | G18: 35 | H18: 124 | I18: 0 | J18: 1 | K18: 97 | L18: 43 | M18: 140 | N18: 1 | O18: 3 | P18: 85 | Q18: 45 | R18: 130 | S18: 2 | T18: 4 | U18: 91 | V18: 50 | W18: 141 | X18: 0 | Y18: 362 | Z18: 173 | AA18: 535 | AB18: 3
A19: 18 | B19: 45826 | C19: Vorlická Kristýna | D19: Loko UL | E19: 4 | F19: 87 | G19: 42 | H19: 129 | I19: 1 | J19: 3 | K19: 92 | L19: 45 | M19: 137 | N19: 0 | O19: 1 | P19: 100 | Q19: 39 | R19: 139 | S19: 2 | T19: 2 | U19: 87 | V19: 43 | W19: 130 | X19: 3 | Y19: 366 | Z19: 169 | AA19: 535 | AB19: 6
A20: 19 | B20: 45821 | C20: Trojanová Miluše | D20: Mikulášovice | E20: 4 | F20: 98 | G20: 44 | H20: 142 | I20: 1 | J20: 3 | K20: 97 | L20: 36 | M20: 133 | N20: 2 | O20: 1 | P20: 77 | Q20: 50 | R20: 127 | S20: 0 | T20: 2 | U20: 89 | V20: 43 | W20: 132 | X20: 0 | Y20: 361 | Z20: 173 | AA20: 534 | AB20: 3
A21: 20 | B21: 45821 | C21: Vohnoutová Šárka | D21: Loko UL | E21: 4 | F21: 83 | G21: 53 | H21: 136 | I21: 0 | J21: 3 | K21: 90 | L21: 33 | M21: 123 | N21: 2 | O21: 1 | P21: 98 | Q21: 54 | R21: 152 | S21: 0 | T21: 2 | U21: 90 | V21: 32 | W21: 122 | X21: 2 | Y21: 361 | Z21: 172 | AA21: 533 | AB21: 4
A22: 21 | B22: 45821 | C22: Marušáková Eliška | D22: Šluknov | E22: 3 | F22: 89 | G22: 45 | H22: 134 | I22: 2 | J22: 4 | K22: 100 | L22: 36 | M22: 136 | N22: 2 | O22: 2 | P22: 90 | Q22: 52 | R22: 142 | S22: 1 | T22: 1 | U22: 83 | V22: 36 | W22: 119 | X22: 1 | Y22: 362 | Z22: 169 | AA22: 531 | AB22: 6
A23: 22 | B23: 45825 | C23: Šuterová Michaela | D23: Duchcov | E23: 2 | F23: 98 | G23: 52 | H23: 150 | I23: 1 | J23: 1 | K23: 84 | L23: 36 | M23: 120 | N23: 4 | O23: 3 | P23: 86 | Q23: 40 | R23: 126 | S23: 1 | T23: 4 | U23: 97 | V23: 36 | W23: 133 | X23: 2 | Y23: 365 | Z23: 164 | AA23: 529 | AB23: 8
A24: 23 | B24: 45829 | C24: Wühr Ingrid | D24: Zwiessel | E24: 4 | F24: 97 | G24: 45 | H24: 142 | I24: 0 | J24: 3 | K24: 86 | L24: 54 | M24: 140 | N24: 1 | O24: 1 | P24: 97 | Q24: 27 | R24: 124 | S24: 4 | T24: 2 | U24: 93 | V24: 26 | W24: 119 | X24: 6 | Y24: 373 | Z24: 152 | AA24: 525 | AB24: 11
A25: 24 | B25: 45830 | C25: Floriánová Jana | D25: Jablonec n.N. | E25: 4 | F25: 87 | G25: 34 | H25: 121 | I25: 0 | J25: 3 | K25: 108 | L25: 43 | M25: 151 | N25: 1 | O25: 1 | P25: 94 | Q25: 44 | R25: 138 | S25: 1 | T25: 2 | U25: 79 | V25: 34 | W25: 113 | X25: 1 | Y25: 368 | Z25: 155 | AA25: 523 | AB25: 3
A26: 25 | B26: 45821 | C26: Exnerová Adéla | D26: Kovo DC | E26: 4 | F26: 91 | G26: 53 | H26: 144 | I26: 1 | J26: 3 | K26: 95 | L26: 26 | M26: 121 | N26: 4 | O26: 1 | P26: 90 | Q26: 45 | R26: 135 | S26: 2 | T26: 2 | U26: 96 | V26: 27 | W26: 123 | X26: 6 | Y26: 372 | Z26: 151 | AA26: 523 | AB26: 13
A27: 26 | B27: 45823 | C27: Zichová Libuše | D27: Konstruktiva | E27: 1 | F27: 89 | G27: 45 | H27: 134 | I27: 2 | J27: 2 | K27: 80 | L27: 35 | M27: 115 | N27: 4 | O27: 4 | P27: 93 | Q27: 32 | R27: 125 | S27: 4 | T27: 3 | U27: 96 | V27: 52 | W27: 148 | X27: 2 | Y27: 358 | Z27: 164 | AA27: 522 | AB27: 12
A28: 27 | B28: 45828 | C28: Wühr Ingrid | D28: Zwiessel | E28: 2 | F28: 96 | G28: 36 | H28: 132 | I28: 2 | J28: 1 | K28: 81 | L28: 27 | M28: 108 | N28: 3 | O28: 3 | P28: 88 | Q28: 69 | R28: 157 | S28: 0 | T28: 4 | U28: 88 | V28: 36 | W28: 124 | X28: 3 | Y28: 353 | Z28: 168 | AA28: 521 | AB28: 8
A29: 28 | B29: 45829 | C29: Bořutová Marcela | D29: Loko UL | E29: 4 | F29: 85 | G29: 53 | H29: 138 | I29: 1 | J29: 3 | K29: 90 | L29: 45 | M29: 135 | N29: 2 | O29: 1 | P29: 76 | Q29: 45 | R29: 121 | S29: 1 | T29: 2 | U29: 82 | V29: 44 | W29: 126 | X29: 2 | Y29: 333 | Z29: 187 | AA29: 520 | AB29: 6
A30: 29 | B30: 45821 | C30: Soukupová Monika | D30: Mikulášovice | E30: 1 | F30: 77 | G30: 59 | H30: 136 | I30: 0 | J30: 2 | K30: 95 | L30: 25 | M30: 120 | N30: 4 | O30: 4 | P30: 95 | Q30: 44 | R30: 139 | S30: 3 | T30: 3 | U30: 91 | V30: 33 | W30: 124 | X30: 4 | Y30: 358 | Z30: 161 | AA30: 519 | AB30: 11
A31: 30 | B31: 45825 | C31: Bořutová Marcela | D31: Loko UL | E31: 2 | F31: 98 | G31: 43 | H31: 141 | I31: 1 | J31: 1 | K31: 87 | L31: 45 | M31: 132 | N31: 1 | O31: 3 | P31: 94 | Q31: 33 | R31: 127 | S31: 2 | T31: 4 | U31: 86 | V31: 33 | W31: 119 | X31: 5 | Y31: 365 | Z31: 154 | AA31: 519 | AB31: 9
A32: 31 | B32: 45822 | C32: Ambrová Kateřina | D32: Žatec | E32: 1 | F32: 83 | G32: 42 | H32: 125 | I32: 5 | J32: 2 | K32: 79 | L32: 53 | M32: 132 | N32: 1 | O32: 4 | P32: 80 | Q32: 34 | R32: 114 | S32: 5 | T32: 3 | U32: 112 | V32: 35 | W32: 147 | X32: 6 | Y32: 354 | Z32: 164 | AA32: 518 | AB32: 17
A33: 32 | B33: 45828 | C33: Wühr Ingrid | D33: Zwiessel | E33: 1 | F33: 93 | G33: 45 | H33: 138 | I33: 1 | J33: 2 | K33: 90 | L33: 44 | M33: 134 | N33: 4 | O33: 4 | P33: 82 | Q33: 35 | R33: 117 | S33: 2 | T33: 3 | U33: 100 | V33: 27 | W33: 127 | X33: 5 | Y33: 365 | Z33: 151 | AA33: 516 | AB33: 12
A34: 33 | B34: 45830 | C34: Hlaváčová Daniela | D34: Louny | E34: 4 | F34: 92 | G34: =H34-F34 -> 25 | H34: 117 | I34: 3 | J34: 3 | K34: 100 | L34: =M34-K34 -> 35 | M34: 135 | N34: 4 | O34: 1 | P34: 91 | Q34: =R34-P34 -> 27 | R34: 118 | S34: 4 | T34: 2 | U34: 103 | V34: =W34-U34 -> 43 | W34: 146 | X34: 2 | Y34: =SUM(F34,K34,P34,U34) -> 386 | Z34: =SUM(G34,L34,Q34,V34) -> 130 | AA34: =SUM(H34,M34,R34,W34) -> 516 | AB34: =SUM(I34,N34,S34,X34) -> 13
A35: 34 | B35: 45826 | C35: Bořutová Marcela | D35: Loko UL | E35: 3 | F35: 97 | G35: 35 | H35: 132 | I35: 3 | J35: 4 | K35: 93 | L35: 35 | M35: 128 | N35: 2 | O35: 2 | P35: 93 | Q35: 36 | R35: 129 | S35: 2 | T35: 1 | U35: 90 | V35: 36 | W35: 126 | X35: 4 | Y35: 373 | Z35: 142 | AA35: 515 | AB35: 11
A36: 35 | B36: 45823 | C36: Dunková Alena | D36: Č.Lípa | E36: 4 | F36: 99 | G36: 43 | H36: 142 | I36: 0 | J36: 3 | K36: 98 | L36: 27 | M36: 125 | N36: 3 | O36: 1 | P36: 90 | Q36: 36 | R36: 126 | S36: 1 | T36: 2 | U36: 86 | V36: 35 | W36: 121 | X36: 0 | Y36: 373 | Z36: 141 | AA36: 514 | AB36: 4
A37: 36 | B37: 45830 | C37: Seifertová Iveta | D37: Jablonec n.N. | E37: 2 | F37: 77 | G37: 43 | H37: 120 | I37: 2 | J37: 1 | K37: 89 | L37: 44 | M37: 133 | N37: 1 | O37: 3 | P37: 90 | Q37: 32 | R37: 122 | S37: 2 | T37: 4 | U37: 100 | V37: 36 | W37: 136 | X37: 4 | Y37: 356 | Z37: 155 | AA37: 511 | AB37: 9
A38: 37 | B38: 45829 | C38: Tulková Zuzana | D38: Rokytnice | E38: 4 | F38: 108 | G38: 26 | H38: 134 | I38: 5 | J38: 3 | K38: 92 | L38: 43 | M38: 135 | N38: 2 | O38: 1 | P38: 84 | Q38: 35 | R38: 119 | S38: 2 | T38: 2 | U38: 78 | V38: 45 | W38: 123 | X38: 1 | Y38: 362 | Z38: 149 | AA38: 511 | AB38: 10
A39: 38 | B39: 45825 | C39: Jurášová Alena | D39: Rýmařov | E39: 3 | F39: 98 | G39: 34 | H39: 132 | I39: 4 | J39: 4 | K39: 82 | L39: 49 | M39: 131 | N39: 0 | O39: 2 | P39: 86 | Q39: 35 | R39: 121 | S39: 6 | T39: 1 | U39: 89 | V39: 35 | W39: 124 | X39: 5 | Y39: 355 | Z39: 153 | AA39: 508 | AB39: 15
A40: 39 | B40: 45824 | C40: Ledwoňová Kamila | D40: Verneřice | E40: 3 | F40: 95 | G40: 40 | H40: 135 | I40: 3 | J40: 4 | K40: 94 | L40: 36 | M40: 130 | N40: 3 | O40: 2 | P40: 83 | Q40: 17 | R40: 100 | S40: 5 | T40: 1 | U40: 101 | V40: 42 | W40: 143 | X40: 2 | Y40: 373 | Z40: 135 | AA40: 508 | AB40: 13
A41: 40 | B41: 45822 | C41: Ambrová Barbora | D41: Žatec | E41: 3 | F41: 84 | G41: 52 | H41: 136 | I41: 1 | J41: 4 | K41: 82 | L41: 36 | M41: 118 | N41: 3 | O41: 2 | P41: 98 | Q41: 26 | R41: 124 | S41: 1 | T41: 1 | U41: 91 | V41: 35 | W41: 126 | X41: 4 | Y41: 355 | Z41: 149 | AA41: 504 | AB41: 9
A42: 41 | B42: 45822 | C42: Hlaváčová Kateřina | D42: K.Vary | E42: 2 | F42: 90 | G42: 17 | H42: 107 | I42: 7 | J42: 1 | K42: 95 | L42: 43 | M42: 138 | N42: 1 | O42: 3 | P42: 88 | Q42: 44 | R42: 132 | S42: 4 | T42: 4 | U42: 92 | V42: 35 | W42: 127 | X42: 0 | Y42: 365 | Z42: 139 | AA42: 504 | AB42: 12
A43: 42 | B43: 45823 | C43: Sailerová Anna | D43: Žižkov | E43: 4 | F43: 83 | G43: 44 | H43: 127 | I43: 1 | J43: 3 | K43: 92 | L43: 26 | M43: 118 | N43: 4 | O43: 1 | P43: 90 | Q43: 26 | R43: 116 | S43: 6 | T43: 2 | U43: 87 | V43: 53 | W43: 140 | X43: 1 | Y43: 352 | Z43: 149 | AA43: 501 | AB43: 12
A44: 43 | B44: 45827 | C44: Šťastná Simona | D44: Nový Bor | E44: 4 | F44: 108 | G44: 51 | H44: 159 | I44: 1 | J44: 3 | K44: 71 | L44: 34 | M44: 105 | N44: 4 | O44: 1 | P44: 85 | Q44: 25 | R44: 110 | S44: 2 | T44: 2 | U44: 93 | V44: 34 | W44: 127 | X44: 2 | Y44: 357 | Z44: 144 | AA44: 501 | AB44: 9
A45: 44 | B45: 45830 | C45: Kvapilová Zdena | D45: Jablonec n.N. | E45: 3 | F45: 82 | G45: 44 | H45: 126 | I45: 4 | J45: 4 | K45: 100 | L45: 17 | M45: 117 | N45: 8 | O45: 2 | P45: 88 | Q45: 43 | R45: 131 | S45: 1 | T45: 1 | U45: 96 | V45: 27 | W45: 123 | X45: 2 | Y45: 366 | Z45: 131 | AA45: 497 | AB45: 15
A46: 45 | B46: 45821 | C46: Strachoňová Květa | D46: Loko UL | E46: 1 | F46: 84 | G46: 34 | H46: 118 | I46: 4 | J46: 2 | K46: 85 | L46: 43 | M46: 128 | N46: 1 | O46: 4 | P46: 79 | Q46: 41 | R46: 120 | S46: 2 | T46: 3 | U46: 94 | V46: 36 | W46: 130 | X46: 2 | Y46: 342 | Z46: 154 | AA46: 496 | AB46: 9
A47: 46 | B47: 45830 | C47: Koščová Petra | D47: Rudná | E47: 4 | F47: 86 | G47: 32 | H47: 118 | I47: 2 | J47: 3 | K47: 85 | L47: 45 | M47: 130 | N47: 1 | O47: 1 | P47: 71 | Q47: 36 | R47: 107 | S47: 2 | T47: 2 | U47: 88 | V47: 50 | W47: 138 | X47: 1 | Y47: 330 | Z47: 163 | AA47: 493 | AB47: 6
A48: 47 | B48: 45822 | C48: Graz Alena | D48: Rudná | E48: 1 | F48: 91 | G48: 42 | H48: 133 | I48: 4 | J48: 2 | K48: 79 | L48: 44 | M48: 123 | N48: 4 | O48: 4 | P48: 80 | Q48: 44 | R48: 124 | S48: 3 | T48: 3 | U48: 85 | V48: 26 | W48: 111 | X48: 5 | Y48: 335 | Z48: 156 | AA48: 491 | AB48: 16
A49: 48 | B49: 45830 | C49: Puschová Simona | D49: Sokol UL | E49: 1 | F49: 84 | G49: 35 | H49: 119 | I49: 5 | J49: 2 | K49: 81 | L49: 36 | M49: 117 | N49: 5 | O49: 4 | P49: 88 | Q49: 35 | R49: 123 | S49: 4 | T49: 3 | U49: 86 | V49: 43 | W49: 129 | X49: 2 | Y49: 339 | Z49: 149 | AA49: 488 | AB49: 16
A50: 49 | B50: 45827 | C50: Machová Hana | D50: Verneřice | E50: 3 | F50: 87 | G50: 36 | H50: 123 | I50: 4 | J50: 4 | K50: 80 | L50: 34 | M50: 114 | N50: 4 | O50: 2 | P50: 97 | Q50: 35 | R50: 132 | S50: 5 | T50: 1 | U50: 84 | V50: 35 | W50: 119 | X50: 7 | Y50: 348 | Z50: 140 | AA50: 488 | AB50: 20
A51: 50 | B51: 45827 | C51: Vesecká Petra | D51: Konstruktiva | E51: 1 | F51: 81 | G51: 26 | H51: 107 | I51: 3 | J51: 2 | K51: 87 | L51: 35 | M51: 122 | N51: 5 | O51: 4 | P51: 85 | Q51: 26 | R51: 111 | S51: 5 | T51: 3 | U51: 94 | V51: 53 | W51: 147 | X51: 1 | Y51: 347 | Z51: 140 | AA51: 487 | AB51: 14
A52: 51 | B52: 45822 | C52: Vrabcová Anna | D52: Č.Lípa | E52: 3 | F52: 91 | G52: 26 | H52: 117 | I52: 4 | J52: 4 | K52: 85 | L52: 25 | M52: 110 | N52: 7 | O52: 2 | P52: 85 | Q52: 34 | R52: 119 | S52: 3 | T52: 1 | U52: 96 | V52: 34 | W52: 130 | X52: 1 | Y52: 357 | Z52: 119 | AA52: 476 | AB52: 15
A53: 52 | B53: 45821 | C53: Sottnerová Jitka | D53: Loko UL | E53: 2 | F53: 86 | G53: 56 | H53: 142 | I53: 1 | J53: 1 | K53: 83 | L53: 24 | M53: 107 | N53: 3 | O53: 3 | P53: 77 | Q53: 44 | R53: 121 | S53: 1 | T53: 4 | U53: 78 | V53: 25 | W53: 103 | X53: 4 | Y53: 324 | Z53: 149 | AA53: 473 | AB53: 9
A54: 53 | B54: 45829 | C54: Fenzl Kathi | D54: Zwiessel | E54: 3 | F54: 70 | G54: 26 | H54: 96 | I54: 4 | J54: 4 | K54: 75 | L54: 34 | M54: 109 | N54: 4 | O54: 2 | P54: 83 | Q54: 61 | R54: 144 | S54: 2 | T54: 1 | U54: 82 | V54: 26 | W54: 108 | X54: 6 | Y54: 310 | Z54: 147 | AA54: 457 | AB54: 16
A55: 54 | B55: 45830 | C55: Gembecová Jana | D55: Jablonec n.N. | E55: 1 | F55: 78 | G55: 21 | H55: 99 | I55: 8 | J55: 2 | K55: 67 | L55: 36 | M55: 103 | N55: 1 | O55: 4 | P55: 74 | Q55: 36 | R55: 110 | S55: 3 | T55: 3 | U55: 85 | V55: 43 | W55: 128 | X55: 2 | Y55: 304 | Z55: 136 | AA55: 440 | AB55: 14
A56: 55 | B56: 45829 | C56: Janoušková Markéta | D56: Rokytnice | E56: 1 | F56: 81 | G56: 18 | H56: 99 | I56: 9 | J56: 2 | K56: 81 | L56: 42 | M56: 123 | N56: 0 | O56: 4 | P56: 69 | Q56: 18 | R56: 87 | S56: 2 | T56: 3 | U56: 74 | V56: 45 | W56: 119 | X56: 5 | Y56: 305 | Z56: 123 | AA56: 428 | AB56: 16
A57: 56 | B57: 45823 | C57: Švindlová Stanislava | D57: Konstruktiva | E57: 1 | F57: 72 | G57: 27 | H57: 99 | I57: 5 | J57: 2 | K57: 76 | L57: 27 | M57: 103 | N57: 6 | O57: 4 | P57: 81 | Q57: 36 | R57: 117 | S57: 1 | T57: 3 | U57: 84 | V57: 25 | W57: 109 | X57: 6 | Y57: 313 | Z57: 115 | AA57: 428 | AB57: 18
A58: 57 | B58: 45823 | C58: Beranová Jiřina | D58: Konstruktiva | E58: 3 | F58: 82 | G58: 34 | H58: 116 | I58: 3 | J58: 4 | K58: 88 | L58: 27 | M58: 115 | N58: 4 | O58: 2 | P58: 70 | Q58: 26 | R58: 96 | S58: 4 | T58: 1 | U58: 68 | V58: 26 | W58: 94 | X58: 5 | Y58: 308 | Z58: 113 | AA58: 421 | AB58: 16
A59: 58 | B59: 45828 | C59: Fenzl Kathi | D59: Zwiessel | E59: 3 | F59: 57 | G59: 26 | H59: 83 | I59: 8 | J59: 4 | K59: 66 | L59: 35 | M59: 101 | N59: 3 | O59: 2 | P59: 63 | Q59: 26 | R59: 89 | S59: 4 | T59: 1 | U59: 80 | V59: 45 | W59: 125 | X59: 3 | Y59: 266 | Z59: 132 | AA59: 398 | AB59: 18
